Workbook

Sheet титульный лист
BE3: УТВЕРЖДАЮ
BE4: Директор
BE5: (наименование должности лица, утверждающего документ)
BZ6: Д.В. Шевченко
BE7: (подпись) | BZ7: (расшифровка подписи)
BG8: " | BH8: 30 | BL8: " | BO8: сентября | CD8: 20 | CH8: 25 | CK8: г.
A10: План
A11: финансово-хозяйственной деятельности на 2025 год
A12: (на 2025 год и плановый период 2026 и 2027 годов)<1>
AM14: " | AN14: 30 | AR14: " | AU14: сентября | BJ14: 20 | BN14: 25 | BQ14: г. | BT14: <2>
CO18: КОДЫ
CB19: Дата | CO19: 30.09.2025
A20: Наименование учреждения | AC20: Государственное автономное образовательное учреждение Мурманской области "Полярнозоринский энергетический колледж" | BT20: по Сводному реестру | CO20: 472Ц8191
CB21: глава по БК | CO21: 804
A22: Орган, осуществляющий функции и полномочия учредителя | AC22: Министерство образования и науки Мурманской облати | BT22: по Сводному реестру | CO22: 47200021
CB23: ИНН | CO23: 5102006924
A24: Единица измерения: рубли | CB24: КПП | CO24: 510201001
CB25: по ОКЕИ | CO25: 383
A26: Юридический адрес учреждения: 184230, Мурманская обл., г. Полярные Зори, ул. Курчатова, д. 24
A27: Адрес фактического местонахождения учреждения: 184230, Мурманская обл., г. Полярные Зори, ул. Курчатова, д. 24
A32: <1> Указывается финансовый год,если закон об областном бюджете утверждается на один финансовый год, либо финансовый год и плановый период, если закон об областном бюджете утверждается на очередной финансовый год и плановый период
A33: <2> Указывается дата подписания Плана, а в случае утверждения Плана уполномоченным лицом учреждения - дата утверждения Плана.

Sheet Раздел 1
A1: Раздел 1. Поступления и выплаты
A3: Наименование показателя | B3: Код строки | C3: Код по БК РФ <3>
D4: на 2025 г. текущий финансовый год | E4: на 2026 г. (1-й год планового периода) | F4: на 2027 г. (2-й год планового периода) | G4: за пределами планового периода
A5: 1 | B5: 2 | C5: 3 | D5: 4 | E5: 5 | F5: 6 | G5: 7
A6: Остаток средств на начало текущего финансового года <4> | B6: 0001 | C6: x | D6: =справочно!D8 -> 1,301,831.55 | E6: =D6 -> 1,301,831.55 | F6: =D6 -> 1,301,831.55
A7: Остаток средств на конец текущего финансового года <4> | B7: 0002 | C7: x | D7: =D6+D8-D40+D115-D120 -> -0.00 | E7: =E6+E8-E40+E115-E120 -> -0.00 | F7: =F6+F8-F40+F115-F120 -> -0.00
A8: Доходы, всего: | B8: 1000 | D8: =D11+D15+D18+D23+D26+D33+D36 -> 128,950,901.00 | E8: =E11+E15+E18+E23+E26+E33+E36 -> 128,950,901.00 | F8: =F11+F15+F18+F23+F26+F33+F36 -> 128,950,901.00
A9: в том числе:
A11: доходы от собственности, всего | B11: 1100 | C11: 120 | D11: =справочно!D12 -> 746,072.22 | E11: =D11 -> 746,072.22 | F11: =D11 -> 746,072.22
A12: в том числе: | B12: 1110 | C12: 120 | D12: =D11 -> 746,072.22 | E12: =D12 -> 746,072.22 | F12: =D12 -> 746,072.22
A14: доходы от оказания услуг, работ, компенсации затрат учреждений, всего | B14: 1200 | C14: 130 | D14: =D15+D18 -> 93,883,581.56 | E14: =D14 -> 93,883,581.56 | F14: =D14 -> 93,883,581.56
A15: в том числе: | B15: 1210 | C15: 130 | D15: =справочно!E14 -> 91,031,400.00 | E15: =D15 -> 91,031,400.00 | F15: =E15 -> 91,031,400.00
A16: субсидии на финансовое обеспечение выполнения государственного (муниципального) задания за счет средств бюджета публично-правового образования, создавшего учреждение
A17: субсидии на финансовое обеспечение выполнения государственного задания за счет средств бюджета Федерального фонда обязательного медицинского страхования | B17: 1220 | C17: 130 | D17: 0.00 | E17: 0.00 | F17: 0.00
A18: поступления от оказания услуг (выполнения работ) на платной основе и от иной приносящей доход деятельности | B18: 1230 | C18: 130 | D18: =справочно!H14 -> 2,852,181.56 | E18: =D18 -> 2,852,181.56 | F18: =D18 -> 2,852,181.56
A19: из них: | B19: 1231 | C19: 130 | D19: 0.00 | E19: 0.00 | F19: 0.00
A20: государственные услуги
A21: дополнительные платные услуги | B21: 1232 | C21: 130 | D21: =D18 -> 2,852,181.56 | E21: =D21 -> 2,852,181.56 | F21: =D21 -> 2,852,181.56
A22: прочие поступления | B22: 1233 | C22: 130 | D22: 0.00 | E22: 0.00 | F22: 0.00
A23: доходы от штрафов, пеней, иных сумм принудительного изъятия, всего | B23: 1300 | C23: 140 | D23: =D24 -> 0.00 | E23: =D23 -> 0.00 | F23: =E23 -> 0.00
A24: в том числе: | B24: 1310 | C24: 140 | D24: =справочно!D19 -> 0.00 | E24: =D24 -> 0.00 | F24: =E24 -> 0.00
A26: безвозмездные денежные поступления, всего | B26: 1400 | C26: 150 | D26: =справочно!D22 -> 33,985,967.00 | E26: =D26 -> 33,985,967.00 | F26: =D26 -> 33,985,967.00
A27: в том числе: | B27: 1410 | C27: 150 | D27: =справочно!D24 -> 22,672,267.00 | E27: =D27 -> 22,672,267.00 | F27: =E27 -> 22,672,267.00
A28: целевые субсидии
A29: субсидии на осуществление капитальных вложений | B29: 1420 | C29: 150 | D29: 0.00 | E29: 0.00 | F29: 0.00
A30: прочие доходы, всего | B30: 1500 | C30: 180 | D30: 0.00 | E30: 0.00 | F30: 0.00
A31: в том числе:
A33: доходы от операций с активами, всего | B33: 1900 | C33: 440 | D33: =справочно!D43 -> 335,280.22 | E33: =D33 -> 335,280.22 | F33: =D33 -> 335,280.22
A34: в том числе:
A36: прочие поступления, всего <5> | B36: 1980 | C36: x | D36: =D38 -> 0.00 | E36: =E38 -> 0.00 | F36: =F38 -> 0.00
A37: из них:
A38: увеличение остатков денежных средств за счет возврата дебиторской задолженности прошлых лет | B38: 1981 | C38: 510 | D38: =справочно!D47 -> 0.00 | E38: =D38 -> 0.00 | F38: =D38 -> 0.00 | G38: x
A40: Расходы, всего | B40: 2000 | C40: x | D40: =D41+D57+D66+D71+D79+D81+D110+D114 -> 129,803,330.71 | E40: =E41+E57+E66+E71+E79+E81+E110+E114 -> 129,803,330.71 | F40: =F41+F57+F66+F71+F79+F81+F110+F1131 -> 129,803,330.71
A41: в том числе: | B41: 2100 | C41: x | D41: =D43+D45+D46+D47 -> 79,389,305.81 | E41: =E43+E45+E46+E47 -> 79,389,305.81 | F41: =E41 -> 79,389,305.81 | G41: x
A42: на выплаты персоналу, всего
A43: в том числе: | B43: 2110 | C43: 111 | D43: =справочно!D50 -> 60,131,036.57 | E43: =D43 -> 60,131,036.57 | F43: =E43 -> 60,131,036.57 | G43: x
A44: оплата труда
A45: прочие выплаты персоналу, в том числе компенсационного характера | B45: 2120 | C45: 112 | D45: =справочно!D51 -> 1,027,178.27 | E45: =D45 -> 1,027,178.27 | F45: =D45 -> 1,027,178.27 | G45: x
A46: иные выплаты, за исключением фонда оплаты труда учреждения, для выполнения отдельных полномочий | B46: 2130 | C46: 113 | D46: =справочно!D52 -> 67,390.00 | E46: =D46 -> 67,390.00 | F46: =D46 -> 67,390.00 | G46: x
A47: взносы по обязательному социальному страхованию на выплаты по оплате труда работников и иные выплаты работникам учреждений, всего | B47: 2140 | C47: 119 | D47: =справочно!D53 -> 18,163,700.97 | E47: =D47 -> 18,163,700.97 | F47: =E47 -> 18,163,700.97 | G47: x
A48: в том числе: | B48: 2141 | C48: 119 | D48: =(справочно!D54) -> 18,130,929.24 | E48: =E47 -> 18,163,700.97 | F48: =E48 -> 18,163,700.97 | G48: x
A49: на выплаты по оплате труда
A50: на иные выплаты работникам | B50: 2142 | C50: 119 | D50: =справочно!D55 -> 32,771.73 | E50: =D50 -> 32,771.73 | F50: =D50 -> 32,771.73 | G50: x
A51: денежное довольствие военнослужащих и сотрудников, имеющих специальные звания | B51: 2150 | C51: 131 | D51: 0.00 | E51: 0.00 | F51: 0.00 | G51: x
A52: расходы на выплаты военнослужащим и сотрудникам, имеющим специальные звания, зависящие от размера денежного довольствия | B52: 2160 | C52: 133 | D52: 0.00 | E52: 0.00 | F52: 0.00
A53: иные выплаты военнослужащим и сотрудникам, имеющим специальные звания | B53: 2170 | C53: 134 | D53: 0.00 | E53: 0.00 | F53: 0.00 | G53: x
A54: страховые взносы на обязательное социальное страхование в части выплат персоналу, подлежащих обложению страховыми взносами | B54: 2180 | C54: 139 | D54: 0.00 | E54: 0.00 | F54: 0.00 | G54: x
A55: в том числе: | B55: 2181 | C55: 139 | D55: 0.00 | E55: 0.00 | F55: 0.00 | G55: x
A56: на оплату труда стажеров
A57: социальные и иные выплаты населению, всего | B57: 2200 | C57: 300 | D57: =справочно!D61 -> 13,238,200.00 | E57: =D57 -> 13,238,200.00 | F57: =D57 -> 13,238,200.00 | G57: x
A58: в том числе: | B58: 2210 | C58: 320 | D58: =D60+D62 -> 7,600,400.00 | E58: =D58 -> 7,600,400.00 | F58: =D58 -> 7,600,400.00 | G58: x
A59: социальные выплаты гражданам, кроме публичных нормативных социальных выплат
A60: из них: | B60: 2211 | C60: 321 | D60: =справочно!D63 -> 3,090,585.00 | E60: =D60 -> 3,090,585.00 | F60: =D60 -> 3,090,585.00 | G60: x
A61: пособия, компенсации и иные социальные выплаты гражданам, кроме публичных нормативных обязательств
A62: приобретение товаров, работ, услуг в пользу граждан в целях их социального обеспечения | B62: 2212 | C62: 323 | D62: =справочно!D64 -> 4,509,815.00 | E62: =D62 -> 4,509,815.00 | F62: =D62 -> 4,509,815.00 | G62: x
A63: выплата стипендий, осуществление иных расходов на социальную поддержку обучающихся за счет средств стипендиального фонда | B63: 2220 | C63: 340 | D63: =справочно!D65 -> 5,637,800.00 | E63: =D63 -> 5,637,800.00 | F63: =D63 -> 5,637,800.00 | G63: x
A64: на премирование физических лиц за достижения в области культуры, искусства, образования, науки и техники, а также на предоставление грантов с целью поддержки проектов в области науки, культуры и искусства | B64: 2230 | C64: 350 | D64: =справочно!D66 -> 0.00 | E64: =D64 -> 0.00 | F64: =D64 -> 0.00 | G64: x
A65: иные выплаты населению | B65: 2240 | C65: 360 | D65: 0.00 | E65: 0.00 | F65: 0.00 | G65: x
A66: уплата налогов, сборов и иных платежей, всего | B66: 2300 | C66: 850 | D66: =D67+D69+D70 -> 2,665,545.45 | E66: =D66 -> 2,665,545.45 | F66: =D66 -> 2,665,545.45 | G66: x
A67: в том числе: | B67: 2310 | C67: 851 | D67: =справочно!D70 -> 2,654,199.00 | E67: =D67 -> 2,654,199.00 | F67: =D67 -> 2,654,199.00 | G67: x
A68: налог на имущество организаций и земельный налог
A69: иные налоги (включаемые в состав расходов) в бюджеты бюджетной системы Российской Федерации, а также государственная пошлина | B69: 2320 | C69: 852 | D69: =справочно!D71 -> 5,410.00 | E69: =D69 -> 5,410.00 | F69: =D69 -> 5,410.00 | G69: x
A70: уплата штрафов (в том числе административных), пеней, иных платежей | B70: 2330 | C70: 853 | D70: =справочно!D72 -> 5,936.45 | E70: =D70 -> 5,936.45 | F70: =D70 -> 5,936.45 | G70: x
A71: безвозмездные перечисления организациям и физическим лицам, всего | B71: 2400 | C71: x | D71: 0.00 | E71: 0.00 | F71: 0.00 | G71: x
A72: из них: | B72: 2410 | C72: 613 | D72: 0.00 | E72: 0.00 | F72: 0.00 | G72: x
A73: гранты, предоставляемые бюджетным учреждениям
A74: гранты, предоставляемые автономным учреждениям | B74: 2420 | C74: 623 | D74: 0.00 | E74: 0.00 | F74: 0.00
A75: гранты, предоставляемые иным некоммерческим организациям (за исключением бюджетных и автомомных учреждений) | B75: 2430 | C75: 634 | D75: 0.00 | E75: 0.00 | F75: 0.00
A76: гранты, предоставляемые другим организациям и физическим лицам | B76: 2440 | C76: 810 | D76: 0.00 | E76: 0.00 | F76: 0.00
A77: взносы в международные организации | B77: 2450 | C77: 862 | D77: 0.00 | E77: 0.00 | F77: 0.00
A78: платежи в целях обеспечения реализации соглашений с правительствами иностранных государств и международными организациями | B78: 2460 | C78: 863 | D78: 0.00 | E78: 0.00 | F78: 0.00 | G78: x
A79: прочие выплаты (кроме выплат на закупку товаров, работ, услуг) | B79: 2500 | C79: x | D79: 0.00 | E79: 0.00 | F79: 0.00 | G79: x
A80: исполнение судебных актов Российской Федерации и мировых соглашений по возмещению вреда, причиненного в результате деятельности учреждения | B80: 2520 | C80: 831 | D80: 0.00 | E80: 0.00 | F80: 0.00 | G80: x
A81: расходы на закупку товаров, работ, услуг, всего <6> | B81: 2600 | C81: x | D81: =D82+D84+D85+D108+D109 -> 34,510,279.45 | E81: =D81 -> 34,510,279.45 | F81: =E81 -> 34,510,279.45
A82: в том числе: | B82: 2610 | C82: 241 | D82: 0.00 | E82: 0.00 | F82: 0.00
A83: закупку научно-исследовательских и опытно-конструкторских работ
A84: закупку товаров, работ, услуг в целях капитального ремонта государственного (муниципального) имущества | B84: 2630 | C84: 243 | D84: =справочно!D87 -> 1,198,000.00 | E84: =D84 -> 1,198,000.00 | F84: =D84 -> 1,198,000.00
A85: прочую закупку товаров, работ и услуг, всего | B85: 2640 | C85: 244 | D85: =D86+D88+D89+D90+D91+D95+D98+D99+D100 -> 21,714,421.66 | E85: =E86+E88+E89+E90+E91+E95+E98+E99+E100 -> 21,714,421.66 | F85: =E85 -> 21,714,421.66
A86: в том числе: | B86: 2641 | C86: 244 | D86: =справочно!D90 -> 117,000.00 | E86: =D86 -> 117,000.00 | F86: =E86 -> 117,000.00
A87: услуги связи
A88: транспортные расходы | B88: 2642 | C88: 244 | D88: =справочно!D91 -> 6,000.00 | E88: =D88 -> 6,000.00 | F88: =E88 -> 6,000.00
A89: коммунальные услуги | B89: 2643 | C89: 244 | D89: =справочно!D92 -> 205,800.79 | E89: =D89 -> 205,800.79 | F89: =E89 -> 205,800.79
A90: арендная плата за пользование имуществом | B90: 2644 | C90: 244 | D90: =справочно!D93 -> 0.00 | E90: 0.00 | F90: 0.00
A91: работы, услуги по содержанию имущества, всего | B91: 2645 | C91: 244 | D91: =справочно!D94 -> 1,629,376.42 | E91: =D91 -> 1,629,376.42 | F91: =D91 -> 1,629,376.42
A92: в том числе:
A93: текущий ремонт движимого имущества
A94: текущий ремонт недвижимого имущества
A95: прочие работы, услуги, всего | B95: 2646 | C95: 244 | D95: =справочно!D95 -> 5,869,547.00 | E95: =D95 -> 5,869,547.00 | F95: =D95 -> 5,869,547.00
A96: в том числе:
A97: организация питания
A98: страхование | B98: 2647 | C98: 244 | D98: =справочно!D96 -> 15,647.48 | E98: =D98 -> 15,647.48 | F98: =D98 -> 15,647.48
A99: увеличение стоимости основных средств | B99: 2648 | C99: 244 | D99: =справочно!D97 -> 10,495,166.18 | E99: =D99 -> 10,495,166.18 | F99: =E99 -> 10,495,166.18
A100: увеличение стоимости материальных запасов, всего | B100: 2649 | C100: 244 | D100: =справочно!D98 -> 3,375,883.79 | E100: =D100 -> 3,375,883.79 | F100: =D100 -> 3,375,883.79
A101: в том числе: | D101: 10,258.00 | E101: =D101 -> 10,258.00 | F101: =D101 -> 10,258.00
A102: медикаменты и перевязочные средства
A103: продукты питания | D103: 198,016.72 | E103: =D103 -> 198,016.72 | F103: =D103 -> 198,016.72
A104: горюче-смазочные материалы | D104: =164977.25+546.9 -> 165,524.15 | E104: =D104 -> 165,524.15 | F104: =D104 -> 165,524.15
A105: строительные материалы | D105: 23,287.00 | E105: =D105 -> 23,287.00 | F105: =D105 -> 23,287.00
A106: мягкий инвентарь | D106: =361949.59+255000+15.95 -> 616,965.54 | E106: =D106 -> 616,965.54 | F106: =D106 -> 616,965.54
A107: прочие материальные запасы | D107: =992042.57+18553-1794.95+1466979.32-4671+10000+785287.3+135673.41 -> 3,402,069.65 | E107: =D107 -> 3,402,069.65 | F107: =D107 -> 3,402,069.65
A108: закупку товаров, работ, услуг в целях создания, развития, эксплуатации и вывода из эксплуатации государственных информационных систем | B108: 2650 | C108: 246 | D108: 0.00 | E108: 0.00 | F108: 0.00
A109: закупку энергетических ресурсов | B109: 2660 | C109: 247 | D109: =справочно!D102 -> 11,597,857.79 | E109: =D109 -> 11,597,857.79 | F109: =D109 -> 11,597,857.79
A110: капитальные вложения в объекты государственной (муниципальной) собственности, всего | B110: 2700 | C110: 400 | D110: 0.00 | E110: 0.00 | F110: 0.00
A111: в том числе: | B111: 2710 | C111: 406 | D111: 0.00 | E111: 0.00 | F111: 0.00
A112: приобретение объектов недвижимого имущества государственными (муниципальными) учреждениями
A113: строительство (реконструкция) объектов недвижимого имущества государственными (муниципальными) учреждениями | B113: 2720 | C113: 407 | D113: 0.00 | E113: 0.00 | F113: 0.00
A114: специальные расходы | B114: 2800 | C114: 880 | D114: 0.00 | E114: 0.00 | F114: 0.00
A115: Выплаты, уменьшающие доход, всего <7> | B115: 3000 | C115: 100 | D115: =D116 -> -68,531.00 | E115: =D115 -> -68,531.00 | F115: =D115 -> -68,531.00 | G115: x
A116: в том числе: | B116: 3010 | D116: =справочно!D104 -> -68,531.00 | E116: =D116 -> -68,531.00 | F116: =D116 -> -68,531.00 | G116: x
A117: налог на прибыль
A118: налог на добавленную стоимость | B118: 3020 | D118: 0.00 | E118: 0.00 | F118: 0.00 | G118: x
A119: прочие налоги, уменьшающие доход | B119: 3030 | D119: 0.00 | E119: 0.00 | F119: 0.00 | G119: x
A120: Прочие выплаты, всего <8> | B120: 4000 | C120: x | D120: ='Раздел 1'!D121 -> 380,870.84 | E120: =E121 -> 380,870.84 | F120: =F121 -> 380,870.84 | G120: x
A121: из них: | B121: 4010 | C121: 610 | D121: =справочно!D110 -> 380,870.84 | E121: =D121 -> 380,870.84 | F121: =D121 -> 380,870.84 | G121: x
A122: Обеспечение исполнения договора
A124: --------------------------------
A125: <3> В графе 3 отражаются: по строкам 1100 - 1900 - коды аналитической группы подвида доходов бюджетов классификации доходов бюджетов; по строкам 1980 - 1990 - коды аналитической группы вида источников финансирования дефицитов бюджетов классификации источников финансирования дефицитов бюджетов; по строкам 2000 - 2800 - коды видов расходов бюджетов классификации расходов бюджетов; по строкам 3000 - 3030 - коды аналитической группы подвида доходов бюджетов классификации доходов бюджетов, по которым планируется уплата налогов, уменьшающих доход (в том числе налог на прибыль, налог на добавленную стоимость, единый налог на вмененный доход для отдельных видов деятельности); по строкам 4000 - 4040 - коды аналитической группы вида источников финансирования дефицитов бюджетов классификации источников финансирования дефицитов бюджетов.
A126: <4> По строкам 0001 и 0002 указываются планируемые суммы остатков средств на начало и на конец планируемого года, если указанные показатели по решению органа, осуществляющего функции и полномочия учредителя, планируются на этапе формирования проекта Плана либо указываются фактические остатки средств при внесении изменений в утвержденный План после завершения отчетного финансового года.
A127: <5> Показатели прочих поступлений включают в себя в том числе показатели увеличения денежных средств за счет возврата дебиторской задолженности прошлых лет, включая возврат предоставленных займов (микрозаймов), а также за счет возврата средств, размещенных на банковских депозитах. При формировании Плана (проекта Плана) обособленному(ым) подразделению(ям) показатель прочих поступлений включает показатель поступлений в рамках расчетов между головным учреждением и обособленным подразделением.
A128: <6> Показатели выплат по расходам на закупки товаров, работ, услуг, отраженные в строке 2600 раздела 1 "Поступления и выплаты" Плана, подлежат детализации в разделе 2 "Сведения по выплатам на закупку товаров, работ, услуг" Плана.
A129: <7> Показатель отражается со знаком "минус".
A130: <8> Показатели прочих выплат включают в себя в том числе показатели уменьшения денежных средств за счет возврата средств субсидий, предоставленных до начала текущего финансового года, предоставления займов (микрозаймов), размещения автономными учреждениями денежных средств на банковских депозитах. При формировании Плана (проекта Плана) обособленному(ым) подразделению(ям) показатель прочих выплат включает показатель поступлений в рамках расчетов между головным учреждением и обособленным подразделением

Sheet справочно
A1: Справочно к разделу 1. Поступления и выплаты
A2: на 2025 текущий финансовый год
A4: Наименование показателя | B4: Код строки | C4: Код по бюджетной классификации Российской Федерации | D4: Сумма, руб. ( с точностью до двух знаков после запятой. 0,00)
D5: Всего | E5: Субсидии на финансовое обеспечение выполнения государственного (муниципального) задания | F5: Субсидии, предоставляемые в соответствии с абзацем вторым пункта 1 статьи 78.1 БК РФ | G5: Субсидии на осуществление капитальных вложений | H5: Поступления от оказания услуг (выполнения работ) на платной основе и от иной приносящей доход деятельности
H6: Всего | I6: в том числе гранты
A7: 1 | B7: 2 | C7: 3 | D7: 4 | E7: 5 | F7: 6 | G7: 7 | H7: 8 | I7: 9
A8: Остаток средств на начало текущего финансового года | C8: х | D8: =E8+F8+H8 -> 1,301,831.55 | E8: =SUM(E9:E10) -> 785,287.30 | F8: =SUM(F9:F10) -> 380,870.84 | G8: =SUM(G10) -> 0.00 | H8: =SUM(H10) -> 135,673.41 | I8: 0.00
A9: в том числе: | D9: =E9+F9 -> 1,166,158.14 | E9: 785,287.30 | F9: 380,870.84
A10: внебюджетные источники | D10: =H10 -> 135,673.41 | E10: 0.00 | H10: 135,673.41 | I10: 0.00
A11: Доходы, всего: | B11: 1000 | C11: х | D11: =SUM(E11:H11) -> 128,950,901.00 | E11: =SUM(E12+E14+E19+E22+E39+E42+E45) -> 91,031,400.00 | F11: =SUM(F24) -> 22,672,267.00 | H11: =SUM(H12+H14+H19+H22+H43+H47) -> 15,247,234.00 | I11: =SUM(I12+I14+I19+I22+I39+I42+I45) -> 11,230,000.00
A12: в том числе: доходы от собственности, всего | B12: 1100 | C12: 120 | D12: =SUM(E12:H12) -> 746,072.22 | E12: =SUM(E13) -> 0.00 | F12: =SUM(F13) -> 0.00 | H12: =SUM(H13) -> 746,072.22
A13: в т.ч. внебюджетные источники | B13: 1101 | C13: 121 | D13: =SUM(E13:H13) -> 746,072.22 | H13: =730246.95+15825.27 -> 746,072.22
A14: доходы от оказания услуг, работ, компенсации затрат учреждений, всего | B14: 1200 | C14: 130 | D14: =SUM(E14:H14) -> 93,883,581.56 | E14: =SUM(E15) -> 91,031,400.00 | F14: =SUM(F15:F16) -> 0.00 | H14: =SUM(H16:H18) -> 2,852,181.56
A15: в том числе: субсидии на финансовое обеспечение выполнения государственного (муниципального) задания за счет средств бюджета публично-правового образования, создавшего учреждение | B15: 1201 | C15: 131 | D15: =SUM(E15:H15) -> 91,031,400.00 | E15: =83196400+7835000 -> 91,031,400.00
A16: внебюджетные источники | B16: 1210 | C16: 131 | D16: 2,033,638.44 | H16: =1199143.15+834495.29 -> 2,033,638.44
A17: внебюджетные источники | B17: 1211 | C17: 134 | D17: 0.00 | H17: 0.00
A18: внебюджетные источники | B18: 1212 | C18: 135 | D18: 818,543.12 | H18: 818,543.12
A19: доходы от штрафов, пеней, иных сумм принудительного изъятия, всего | B19: 1300 | C19: 140 | D19: 0.00 | H19: =SUM(H21) -> 0.00
A20: в том числе: | D20: 0.00
A21: внебюджетные источники | B21: 1301 | C21: 141 | D21: 0.00 | H21: 0.00
A22: безвозмездные денежные поступления, всего | B22: 1400 | C22: 150 | D22: =SUM(D24)+D35+D36+D37+D38 -> 33,985,967.00 | E22: =SUM(E24) -> 0.00 | F22: =SUM(F24) -> 22,672,267.00 | G22: =SUM(G24) -> 0.00 | H22: =SUM(H35:H38) -> 11,313,700.00 | I22: =I36+I37 -> 11,230,000.00
A23: в том числе: | D23: 0.00
A24: субсидии на иные цели | C24: 152 | D24: =SUM(D25:D34) -> 22,672,267.00 | F24: =SUM(F25:F35) -> 22,672,267.00 | H24: 0.00 | I24: 0.00
A25: Обеспечены выплаты ежемесячного денежного вознаграждения советникам директоров по воспитанию и взаимодействию с детскими общественными объединениями (ФБ) | C25: 152 | D25: =F25 -> 171,950.00 | F25: 171,950.00
A26: Обеспечены выплаты ежемесячного денежного вознаграждения советникам директоров по воспитанию и взаимодействию с детскими общественными объединениями (ОБ) | C26: 152 | D26: =F26 -> 7,730.00 | F26: 7,730.00
A27: Обеспечены выплаты денежного вознаграждения за классное руководство (кураторство), предоставляемые педагогическим работникам образовательных организаций ежемесячно (ФБ) | C27: 152 | D27: =F27 -> 6,533,800.00 | F27: 6,533,800.00
A28: Обеспечены выплаты денежного вознаграждения за классное руководство (кураторство), предоставляемые педагогическим работникам образовательных организаций ежемесячно (ОБ) | C28: 152 | D28: =F28 -> 293,900.00 | F28: 293,900.00
A29: Обеспечено предоставление стипендий обучающимся по очной форме обучения в профессиональных образовательных организациях | C29: 152 | D29: 5,637,800.00 | F29: 5,637,800.00
A30: Обеспечено финансирование мероприятий Всероссийского чемпионатного движения по профессиональному мастерству в Мурманской области | C30: 152 | D30: =F30 -> 1,293,491.00 | F30: 1,293,491.00
A31: Обеспечено финасирование предоставления бесплатного питания отдельным категориям обучающихся в учреждениях среднего профессионального образования | C31: 152 | D31: =SUM(E31:H31) -> 2,012,400.00 | F31: 2,012,400.00
A32: Обеспечено финансирование расходов, связанных с оплатой проезда и провоза багажа к месту использования отпуска и обратно, а также компенсацией расходов на оплату стоимости проезда и провоза багажа при переезде лиц (работников), а также членов их семей, при заключении (расторжении) трудовых договоров (контрактов) с организациями, финансируемыми из областного бюджета | C32: 152 | D32: 928,900.00 | F32: 928,900.00
A33: Обеспечено содержание детей-сирот, детей, оставшихся без попечения родителей, лиц из их числа в государственных автономных профессиональных образовательных учреждениях Мурманской области | C33: 152 | D33: 5,588,000.00 | F33: 5,588,000.00
A34: Обеспечено финансирование затрат на модернизацию, эксплуатацию и сопровождение автоматизированных информационных систем для предоставления государственных и муниципальных услуг в сфере образования | C34: 152 | D34: =F34 -> 204,296.00 | F34: 204,296.00
A35: Стипендия Правительства РФ | C35: 152 | D35: =SUM(E35:H35) -> 0.00 | H35: 0.00 | I35: =H35 -> 0.00
A36: Грант в форме субсидии на развитие студенческих спортивных клубов | C36: 152 | D36: =H36 -> 730,000.00 | H36: 730,000.00 | I36: 730,000.00
A37: Безвозмездное (целевое) финансирование на монтаж АПС в зд. мастерских, обновление общих зон (приобретение мебели, брендирование) | C37: 155 | D37: =H37 -> 10,500,000.00 | H37: 10,500,000.00 | I37: 10,500,000.00
A38: Предоставление безвозмездной финансовой помощи | C38: 155 | D38: =H38 -> 83,700.00 | H38: =21600+62100 -> 83,700.00
A39: прочие доходы, всего | B39: 1500 | D39: 0.00
A40: в том числе: | C40: 180 | D40: 0.00
D41: 0.00
A42: доходы от операций с активами, всего | B42: 1900 | D42: 0.00
A43: в том числе: | C43: 440 | D43: 335,280.22 | H43: =368880.22-33600 -> 335,280.22
D44: 0.00
A45: прочие поступления, всего | B45: 1980 | D45: 0.00
A46: в том числе: | D46: 0.00
A47: обеспечение контрактов | C47: 510 | D47: 0.00 | H47: 0.00
A48: Расходы, всего | B48: 2000 | C48: х | D48: =SUM(E48:H48) -> 129,803,330.71 | E48: =SUM(E49+E61+E68+E88+E102) -> 91,816,687.30 | F48: =SUM(F49+F61+F68+F85) -> 22,672,267.00 | H48: =SUM(H49+H61+H68+H87+H88+H102+H107) -> 15,314,376.41 | I48: =SUM(I49+I53+I61+I68+I88) -> 10,032,000.00
A49: в том числе: на выплаты персоналу, всего | B49: 2100 | C49: х | D49: =SUM(D50:D53) -> 79,389,305.81 | E49: =SUM(E50:E53) -> 69,336,468.62 | F49: =SUM(F50:F53) -> 7,936,280.00 | H49: =SUM(H50:H53) -> 2,116,557.19
A50: в том числе: оплата труда | B50: 2110 | C50: 111 | D50: =SUM(E50:H50) -> 60,131,036.57 | E50: =53029246.25+95000 -> 53,124,246.25 | F50: =5016000+228000+132000+6000 -> 5,382,000.00 | H50: =1324790.32+300000 -> 1,624,790.32
A51: прочие выплаты персоналу, в том числе компенсационного характера | B51: 2120 | C51: 112 | D51: =SUM(E51:H51) -> 1,027,178.27 | E51: 130,000.00 | F51: 896,128.27 | H51: 1,050.00
A52: иные выплаты, за исключением фонда оплаты труда учреждения, для выполнения отдельных полномочий | B52: 2130 | C52: 113 | D52: 67,390.00 | E52: 67,390.00 | H52: 0.00
A53: взносы по обязательному социальному страхованию на выплаты по оплате труда работников и иные выплаты работникам учреждений, всего | B53: 2140 | C53: х | D53: 18,163,700.97 | E53: =SUM(E54:E60) -> 16,014,832.37 | F53: =SUM(F54:F60) -> 1,658,151.73 | H53: =H54 -> 490,716.87
A54: в том числе: на выплаты по оплате труда | B54: 2141 | C54: 119 | D54: 18,130,929.24 | E54: 16,014,832.37 | F54: =1517800+65900+39950+1730 -> 1,625,380.00 | H54: 490,716.87
A55: на иные выплаты работникам | B55: 2142 | C55: 119 | D55: 32,771.73 | F55: 32,771.73
A56: денежное довольствие военнослужащих и сотрудников, имеющих специальные звания | B56: 2150 | D56: 0.00
A57: расходы на выплаты военнослужащим и сотрудникам, имеющим специальные звания, зависящие от размера денежного довольствия | B57: 2160 | D57: 0.00
A58: иные выплаты военнослужащим и сотрудникам, имеющим специальные звания | B58: 2170 | D58: 0.00
A59: страховые взносы на обязательное социальное страхование в части выплат персоналу, подлежащих обложению страховыми взносами | B59: 2180 | D59: 0.00
A60: в том числе: на оплату труда стажеров | B60: 2181 | D60: 0.00
A61: социальные и иные выплаты населению, всего | B61: 2200 | C61: х | D61: =SUM(E61:H61) -> 13,238,200.00 | E61: =SUM(E62:E67) -> 0.00 | F61: =F62+F65+F66 -> 13,238,200.00 | H61: =SUM(H62:H67) -> 0.00 | I61: =SUM(I62:I67) -> 0.00
A62: в том числе: социальные выплаты гражданам, кроме публичных нормативных социальных выплат | B62: 2210 | C62: 320 | D62: =D63+D64 -> 7,600,400.00 | F62: =F63+F64 -> 7,600,400.00 | H62: =H63+H64 -> 0.00
A63: из них: пособия, компенсации и иные социальные выплаты гражданам, кроме публичных нормативных обязательств | B63: 2211 | C63: 321 | D63: 3,090,585.00 | E63: 0.00 | F63: =240585+2850000 -> 3,090,585.00 | H63: 0.00
A64: приобретение товаров, работ,услуг в пользу граждан в целях их социального обеспечения | B64: 2212 | C64: 323 | D64: 4,509,815.00 | E64: 0.00 | F64: =1771815+2738000 -> 4,509,815.00 | H64: 0.00
A65: выплата стипендий, осуществление иных расходов на социальную поддержку обучающихся за счет средств стипендиального фонда | B65: 2220 | C65: 340 | D65: 5,637,800.00 | E65: 0.00 | F65: 5,637,800.00 | H65: 0.00 | I65: =H65 -> 0.00
A66: на премирование физических лиц за достижения в области культуры, искусства, образования, науки и техники, а также на предоставление грантов с целью поддержки проектов в области науки, культуры и искусства | B66: 2230 | C66: 350 | D66: 0.00 | E66: 0.00 | F66: 0.00 | H66: 0.00
A67: иные выплаты населению | B67: 2240 | D67: 0.00
A68: уплата налогов, сборов и иных платежей, всего | B68: 2300 | C68: х | D68: 2,665,545.45 | E68: =SUM(E70:E72) -> 2,547,512.00 | F68: =SUM(F70:F72) -> 0.00 | H68: =SUM(H70:H72) -> 118,033.45 | I68: =SUM(I70:I72) -> 0.00
A69: в том числе: | D69: 0.00
A70: налог на имущество организаций и земельный налог | B70: х | C70: 851 | D70: 2,654,199.00 | E70: =2312597+229668 -> 2,542,265.00 | F70: 0.00 | H70: =104831+7103 -> 111,934.00
A71: иные налоги (включаемые в состав расходов) в бюджеты бюджетной системы Российской Федерации, а также государственная пошлина | B71: х | C71: 852 | D71: 5,410.00 | E71: 5,247.00 | F71: 0.00 | H71: 163.00
A72: уплата штрафов (в том числе административных), пеней, иных платежей | B72: х | C72: 853 | D72: 5,936.45 | E72: 0.00 | F72: 0.00 | H72: 5,936.45
A73: безвозмездные перечисления организациям и физическим лицам, всего
A74: в том числе:
A75: гранты, предоставляемые бюджетным учреждениям | B75: 2410
A76: гранты, предоставляемые автономным учреждениям | B76: 2420
A77: гранты, предоставляемые иным некоммерческим организациям (за исключением бюджетных и автономных учреждений) | B77: 2430
A78: гранты, предоставляемые другим организациям и физическим лицам | B78: 2440
A79: взносы в международные организации | B79: 2450
A80: платежи в целях обеспечения реализации соглашений с правительствами иностранных государств и международными организациями | B80: 2460
A81: прочие выплаты (кроме выплат на закупку товаров, работ, услуг) | B81: 2500 | C81: х
A82: в том числе :
A83: исполнение судебных актов Российской Федерации и мировых соглашений по возмещению вреда, причиненного в результате деятельности учреждения | B83: 2520
A85: расходы на закупку товаров, работ, услуг, всего | B85: 2600 | C85: х | D85: =E85+F85+H85 -> 34,510,279.45 | E85: =E88+E102 -> 19,932,706.68 | F85: =SUM(F87+F88) -> 1,497,787.00 | H85: =H87+H88+H102 -> 13,079,785.77
A86: в том числе: закупку научно-исследовательских и опытно-конструкторских работ | B86: 2610
A87: закупку товаров, работ, услуг в целях капитального ремонта государственного (муниципального) имущества | B87: 2630 | C87: 243 | D87: =SUM(E87:H87) -> 1,198,000.00 | E87: 0.00 | F87: 0.00 | H87: =599000+599000 -> 1,198,000.00 | I87: =599000+599000 -> 1,198,000.00
A88: прочую закупку товаров, работ и услуг, всего | B88: 2640 | C88: х | D88: =SUM(D90:D98) -> 21,714,421.66 | E88: =SUM(E89:E98) -> 8,885,394.88 | F88: =SUM(F89:F98) -> 1,497,787.00 | H88: =SUM(H89:H98) -> 11,331,239.78 | I88: =SUM(I90:I98) -> 10,032,000.00
A89: в том числе:
A90: услуги связи | C90: 244 | D90: =SUM(E90:H90) -> 117,000.00 | E90: 117,000.00 | F90: 0.00 | H90: 0.00
A91: транспортные услуги | C91: 244 | D91: =SUM(E91:H91) -> 6,000.00 | E91: 6,000.00 | F91: 0.00 | H91: 0.00
A92: коммунальные услуги | C92: 244 | D92: 205,800.79 | E92: 185,947.33 | F92: 0.00 | H92: =19853.46 -> 19,853.46
A93: арендная плата за пользование имуществом | C93: 244 | D93: 0.00 | E93: 0.00 | F93: 0.00 | H93: 0.00
A94: работы, услуги по содержанию имущества | C94: 244 | D94: =SUM(E94:H94) -> 1,629,376.42 | E94: 905,500.00 | F94: 0.00 | H94: 723,876.42
A95: прочие работы, услуги | C95: 244 | D95: =SUM(E95:H95) -> 5,869,547.00 | E95: 4,653,160.00 | F95: =123491+204296 -> 327,787.00 | H95: =243600+645000 -> 888,600.00 | I95: 645,000.00
A96: страхование | C96: 244 | D96: 15,647.48 | E96: 15,647.48 | F96: 0.00 | H96: 0.00
A97: увеличение стоимости основных средств | C97: 244 | D97: =SUM(E97:H97) -> 10,495,166.18 | E97: 1,160,000.00 | F97: 0.00 | H97: =9302000+730000-645000-320-50000-1513.82 -> 9,335,166.18 | I97: =9302000+730000-645000-320-50000-1513.82 -> 9,335,166.18
A98: увеличение стоимости материальных запасов | C98: 244 | D98: =SUM(E98:H98) -> 3,375,883.79 | E98: =1056852.77+785287.3 -> 1,842,140.07 | F98: =1293491-123491 -> 1,170,000.00 | H98: =585642.41-7432.51+320+50000+1513.82-350000+83700 -> 363,743.72 | I98: =320+50000+1513.82 -> 51,833.82
A99: капитальные вложения в объекты государственной (муниципальной) собственности, всего | B99: 2650 | C99: х
A100: в том числе: приобретение объектов недвижимого имущества государственными (муниципальными) учреждениями | B100: 2651
A101: строительство (реконструкция) объектов недвижимого имущества государственными (муниципальными) учреждениями | B101: 2652 | C101: 243
A102: закупку энергетических ресурсов | B102: 2660 | C102: 247 | D102: =E102+F102+H102 -> 11,597,857.79 | E102: 11,047,311.80 | H102: 550,545.99
A103: Выплаты, уменьшающие доход, всего | B103: 3000 | C103: х | D103: =SUM(D104:D106) -> -68,531.00 | H103: =SUM(H104:H106) -> -68,531.00
A104: в том числе: налог на прибыль | B104: 3010 | C104: 180 | D104: =SUM(E104:H104) -> -68,531.00 | H104: -68,531.00
A105: налог на добавленную стоимость | B105: 3020
A106: прочие налоги, уменьшающие доход | B106: 3030
A107: Прочие выплаты, всего | B107: 4000 | C107: х | D107: =SUM(D108:D110) -> 380,870.84 | H107: =SUM(H108:H110) -> 0.00
A108: в том числе:
A109: возврат в бюджет средств субсидии | C109: 610
A110: Обеспечение исполнения договора | C110: 610 | D110: =SUM(E110:H110) -> 380,870.84 | F110: 380,870.84
A111: Остаток средств на конец текущего финансового года | B111: 0002 | D111: =D113 -> 0.00 | E111: =E8+E11-E48 -> 0.00 | F111: =F113 -> 0.00 | H111: =SUM(H113) -> 0.00
A112: в том числе:
A113: внебюджетные источники | C113: 131 | D113: =E113+F113+H113 -> 0.00 | E113: =E8+E11-E48 -> 0.00 | F113: =F8+F11-F48-F110 -> 0.00 | H113: =H10+H11-H48+H103 -> 0.00

Sheet Раздел 2
A1: Раздел 2. Сведения по выплатам на закупки товаров, работ, услуг<9>
A3: N п/п | B3: Наименование показателя | C3: Коды строк | D3: Год начала закупки | E3: Код по бюджетной классификации Российской Федерации <9.1> | F3: Уникальный код <9.2> | G3: Сумма, руб.
G4: на 2025 г. текущий финансовый год | H4: на 2026 г. (1-й год планового периода) | I4: на 2026 г. (2-й год планового периода) | J4: за пределами планового периода
A5: 1 | B5: 2 | C5: 3 | D5: 4 | E5: 4.1 | F5: 4.2 | G5: 5 | H5: 6 | I5: 7 | J5: 8
A6: 1 | B6: Выплаты на закупку товаров, работ, услуг, всего <10> | C6: 26000 | D6: x | G6: =G10+G19 -> 33,236,155.45 | H6: =G6 -> 33,236,155.45 | I6: =G6 -> 33,236,155.45
A7: 1.1 | B7: в том числе: | C7: 26100 | D7: x
B8: по контрактам (договорам), заключенным до начала текущего финансового года без применения норм Федерального закона от 5 апреля 2013 г. N 44-ФЗ "О контрактной системе в сфере закупок товаров, работ, услуг для обеспечения государственных и муниципальных нужд" (далее - Федеральный закон N 44-ФЗ) и Федерального закона от 18 июля 2011 г. N 223-ФЗ "О закупках товаров, работ, услуг отдельными видами юридических лиц" (далее - Федеральный закон N 223-ФЗ) <11>
A9: 1.2 | B9: по контрактам (договорам), планируемым к заключению в соответствующем финансовом году без применения норм Федерального закона N 44-ФЗ и Федерального закона N 223-ФЗ <11> | C9: 26200 | D9: x
A10: 1.3 | B10: по контрактам (договорам), заключенным до начала текущего финансового года с учетом требований Федерального закона N 44-ФЗ и Федерального закона N 223-ФЗ <12> | C10: 26300 | D10: x | G10: =G15 -> 5,654,821.41 | H10: =H15 -> 5,654,821.41 | I10: =I15 -> 5,654,821.41
A11: 1.3.1 | B11: в том числе: | C11: 26310 | D11: x | E11: x
B12: в соответствии с Федеральным законом N 44-ФЗ
B13: из них <9.1>: | C13: 26310.1
B14: из них <9.1>: | C14: 26310.2
A15: 1.3.2 | B15: в соответствии с Федеральным законом N 223-ФЗ | C15: 26320 | D15: x | E15: x | G15: =G16+G17+G18 -> 5,654,821.41 | H15: =H16+H17+H18 -> 5,654,821.41 | I15: =I16+I17+I18 -> 5,654,821.41
B16: в т.ч: | C16: 26321 | E16: 244 | G16: =167650.79+15154.32+71561.7 -> 254,366.81 | H16: =G16 -> 254,366.81 | I16: 254,366.81
C17: 26322 | E17: 247 | G17: =1700000 -> 1,700,000.00 | H17: 1,700,000.00 | I17: 1,700,000.00
C18: 26323 | E18: 323 | G18: =311021+1157117.5+1306366.1+611450+314500 -> 3,700,454.60 | H18: 3,700,454.60 | I18: 3,700,454.60
A19: 1.4 | B19: по контрактам (договорам), планируемым к заключению в соответствующем финансовом году с учетом требований Федерального закона N 44-ФЗ и Федерального закона N 223-ФЗ <12> | C19: 26400 | D19: x | G19: =G20+G27+G40 -> 27,581,334.04 | H19: =G19 -> 27,581,334.04 | I19: =G19 -> 27,581,334.04
A20: 1.4.1 | B20: в том числе: | C20: 26410 | D20: x | G20: =G24 -> 13,553,054.50 | H20: =G20 -> 13,553,054.50 | I20: =G20 -> 13,553,054.50
B21: за счет субсидий, предоставляемых на финансовое обеспечение выполнения государственного (муниципального) задания
A22: 1.4.1.1. | B22: в том числе: | C22: 26411 | D22: x
B23: в соответствии с Федеральным законом N 44-ФЗ
A24: 1.4.1.2 | B24: в соответствии с Федеральным законом N 223-ФЗ <13> | C24: 26412 | D24: x | G24: =G25+G26 -> 13,553,054.50 | H24: =G24 -> 13,553,054.50 | I24: =G24 -> 13,553,054.50
B25: в т.ч.: | E25: 244 | G25: 6,118,550.32 | H25: =G25 -> 6,118,550.32 | I25: =G25 -> 6,118,550.32
E26: 247 | G26: =7934504.18-500000 -> 7,434,504.18 | H26: =G26 -> 7,434,504.18 | I26: =G26 -> 7,434,504.18
A27: 1.4.2 | B27: за счет субсидий, предоставляемых в соответствии с абзацем вторым пункта 1 статьи 78.1 Бюджетного кодекса Российской Федерации | C27: 26420 | D27: x | G27: =G31 -> 809,360.40 | H27: =G27 -> 809,360.40 | I27: =G27 -> 809,360.40
A28: 1.4.2.1 | B28: в том числе: | C28: 26421 | D28: x
B29: в соответствии с Федеральным законом N 44-ФЗ
B30: из них <9.1>: | C30: 26421.1 | D30: x
A31: 1.4.2.2 | B31: в соответствии с Федеральным законом N 223-ФЗ <13> | C31: 26422 | D31: x | G31: =G32 -> 809,360.40 | H31: =G31 -> 809,360.40 | I31: =G31 -> 809,360.40
B32: в т.ч.: | E32: 323 | G32: 809,360.40 | H32: =G32 -> 809,360.40 | I32: =G32 -> 809,360.40
A33: 1.4.3 | B33: за счет субсидий, предоставляемых на осуществление капитальных вложений <14> | C33: 26430 | D33: x
B34: из них <9.1>: | C34: 26430.1 | D34: x
B35: из них <9.2>: | C35: 26421.2 | D35: x
A36: 1.4.4 | B36: за счет средств обязательного медицинского страхования | C36: 26440 | D36: x
A37: 1.4.4.1 | B37: в том числе: | C37: 26441 | D37: x
B38: в соответствии с Федеральным законом N 44-ФЗ
A39: 1.4.4.2 | B39: в соответствии с Федеральным законом N 223-ФЗ <13> | C39: 26442 | D39: x
A40: 1.4.5 | B40: за счет прочих источников финансового обеспечения | C40: 26450 | D40: x | G40: =G45+G46+G47 -> 13,218,919.14 | H40: =G40 -> 13,218,919.14 | I40: =G40 -> 13,218,919.14
A41: 1.4.5.1 | B41: в том числе: | C41: 26451 | D41: x
B42: в соответствии с Федеральным законом N 44-ФЗ
B43: из них <9.1>: | C43: 26451.1 | D43: x
B44: из них <9.2>: | C44: 26451.2 | D44: x
A45: 1.4.5.2 | B45: в соответствии с Федеральным законом N 223-ФЗ | C45: 26452 | E45: 243 | G45: =599000+599000 -> 1,198,000.00 | H45: =G45 -> 1,198,000.00 | I45: =G45 -> 1,198,000.00
D46: x | E46: 244 | G46: =1488919.14+9302000+730000 -> 11,520,919.14 | H46: =G46 -> 11,520,919.14 | I46: =G46 -> 11,520,919.14
E47: 247 | G47: 500,000.00 | H47: =G47 -> 500,000.00 | I47: =G47 -> 500,000.00
A48: 2 | B48: Итого по контрактам, планируемым к заключению в соответствующем финансовом году в соответствии с Федеральным законом N 44-ФЗ, по соответствующему году закупки | C48: 26500 | D48: x
B49: в том числе по году начала закупки: | C49: 26510
A51: 3 | B51: Итого по договорам, планируемым к заключению в соответствующем финансовом году в соответствии с Федеральным законом N 223-ФЗ, по соответствующему году закупки | C51: 26600 | D51: x | G51: =G52 -> 0.00 | H51: =H52 -> 0.00 | I51: =I52 -> 0.00
B52: в том числе по году начала закупки: | C52: 26610
A55: --------------------------------
A56: <9> В Разделе 2 "Сведения по выплатам на закупку товаров, работ, услуг" Плана детализируются показатели выплат по расходам на закупку товаров, работ, услуг, отраженные по соответствующим строкам Раздела 1 "Поступления и выплаты" Плана
A57: <9.1> В случаях, если учреждению предоставляются субсидия на иные цели, субсидия на осуществление капитальных вложений или грант в форме субсидии в соответствии с абзацем первым пункта 4 статьи 78.1 Бюджетного кодекса Российской Федерации в целях достижения результатов федерального проекта, в том числе входящего в состав соответствующего национального проекта (программы), определенного Указом Президента Российской Федерации от 7 мая 2018 г. N 204 "О национальных целях и стратегических задачах развития Российской Федерации на период до 2024 года", или регионального проекта, обеспечивающего достижение целей, показателей и результатов федерального проекта (далее - региональный проект), показатели строк 26310, 26421, 26430 и 26451 Раздела 2 "Сведения по выплатам на закупку товаров, работ, услуг" детализируются по коду целевой статьи (8 - 17 разряды кода классификации расходов бюджетов, при этом в рамках реализации регионального проекта в 8 - 10 разрядах могут указываться нули).
A58: <9.2> Указывается уникальный код объекта капитального строительства или объекта недвижимого имущества, присвоенный государственной интегрированной информационной системой управления общественными финансами "Электронный бюджет", в случае если источником финансового обеспечения расходов на осуществление капитальных вложений являются средства федерального бюджета, в том числе предоставленные в виде межбюджетного трансферта в целях софинансирования расходных обязательств субъекта Российской Федерации (муниципального образования).
A59: <10> Плановые показатели выплат на закупку товаров, работ, услуг по строке 26000 Раздела 2 "Сведения по выплатам на закупку товаров, работ, услуг" Плана распределяются на выплаты по контрактам (договорам), заключенным (планируемым к заключению) в соответствии с гражданским законодательством (строки 26100 и 26200), а также по контрактам (договорам), заключаемым в соответствии с требованиями законодательства Российской Федерации и иных нормативных правовых актов о контрактной системе в сфере закупок товаров, работ, услуг для обеспечения государственных и муниципальных нужд с детализацией указанных выплат по контрактам (договорам), заключенным до начала текущего финансового года (строка 26300) и планируемым к заключению в соответствующем финансовом году (строка 26400).
A60: <11> Указывается сумма договоров (контрактов) о закупках товаров, работ, услуг, заключенных без учета требований Федерального закона N 44-ФЗ и Федерального закона N 223-ФЗ, в случаях, предусмотренных указанными федеральными законами.
A61: <12> Указывается сумма закупок товаров, работ, услуг, осуществляемых в соответствии с Федеральным законом N 44-ФЗ и Федеральным законом N 223-ФЗ.
A62: <13> Государственным (муниципальным) бюджетным учреждением показатель не формируется.
A63: <14> Указывается сумма закупок товаров, работ, услуг, осуществляемых в соответствии с Федеральным законом N 44-ФЗ.

Sheet Раздел 3
A1: Раздел 3. Сведения и показатели об использования ресурсов учреждения (подразделения) на "30" сентября 2025 г.
A3: Наименование показателя | B3: Единица измерения | C3: за 2025 г. текущий финансовый год | D3: на 2026 г. 1-й год планового периода | E3: на 2027 г. 2-й год планового периода | F3: за пределами планового периода
A4: 1 | B4: 2 | C4: 4 | D4: 5 | E4: 6 | F4: 7
A5: 1. Сведения об уровне оплаты труда работников учреждения (подразделения) | B5: x | C5: x | D5: x | E5: x | F5: x
A6: 1.1. Фонд оплаты труда (с учетом ЕЖКВ), всего | B6: тыс. руб. | C6: 52,589.11 | D6: =C6 -> 52,589.11 | E6: =C6 -> 52,589.11
A7: из них: выплаты стимулирующего характера | B7: тыс. руб. | C7: 6,146.47 | D7: =C7 -> 6,146.47 | E7: =C7 -> 6,146.47
A8: в том числе:
A9: 1.1.1. Фонд оплаты труда руководителей учреждения (подразделения) и их заместителей и главных бухгалтеров | B9: тыс. руб. | C9: 7,662.72 | D9: =C9 -> 7,662.72 | E9: =C9 -> 7,662.72
A10: из них: выплаты стимулирующего характера | B10: тыс. руб. | C10: 1,138.34 | D10: 1,138.34 | E10: 1,138.34
A11: 1.1.2. Фонд оплаты труда прочих работников учреждения (подразделения) | B11: тыс. руб. | C11: =C6-C9-C13 -> 20,325.07 | D11: 20,325.07 | E11: 20,325.07
A12: из них: выплаты стимулирующего характера | B12: тыс. руб. | C12: =C7-C10-2091.35 -> 2,916.78 | D12: 2,916.78 | E12: 2,916.78
A13: 1.2. Фонд оплаты труда отдельных категорий работников бюджетной сферы, повышение оплаты труда которых предусмотрено указами Президента РФ, всего | B13: тыс. руб. | C13: 24,601.32 | D13: 24,601.32 | E13: 24,601.32
A14: 1.3. Среднесписочная численность работников учреждения (подразделения) | B14: чел. | C14: 55.4 | D14: 55.4 | E14: 55.4
A15: в том числе:
A16: 1.3.1. Среднесписочная численность руководителей учреждения (подразделения) и их заместителей и главных бухгалтеров | B16: чел. | C16: 6 | D16: 6 | E16: 6
A17: 1.3.2. Среднесписочная численность прочих работников учреждения (подразделения) | B17: чел. | C17: 49.4 | D17: =C17 -> 49.4 | E17: =C17 -> 49.4
A18: 1.4. Среднесписочная численность работников учреждения (подразделения), с которыми заключены эффективные контракты | B18: чел. | C18: 57 | D18: =C18 -> 57 | E18: =C18 -> 57
A19: в том числе:
A20: 1.4.1. Среднесписочная численность руководителей учреждения (подразделения) и их заместителей и главных бухгалтеров, с которыми заключены эффективные контракты | B20: чел. | C20: 6 | D20: 6 | E20: 6
A21: 1.4.2. Среднесписочная численность прочих работников учреждения (подразделения), с которыми заключены эффективные контракты | B21: чел. | C21: 28 | D21: =C21 -> 28 | E21: =C21 -> 28
A22: 1.5. Среднесписочная численность отдельных категорий работников бюджетной сферы, повышение оплаты труда которых предусмотрено указами Президента РФ, всего | B22: чел. | C22: 22.7 | D22: =C22 -> 22.7 | E22: =C22 -> 22.7
A23: 1.6. Средняя заработная плата, необходимая для реализации указов Президента РФ, предусматривающих повышение оплаты труда отдельных категорий работников бюджетной сферы | B23: руб. | C23: 90,554.40 | D23: =C23 -> 90,554.40 | E23: =C23 -> 90,554.40
A24: 1.7. Средняя заработная плата, сложившаяся/прогнозируемая в отчетном периоде | B24: руб. | C24: x | D24: x | E24: x | F24: x
A25: в том числе по категориям работников, повышение оплаты труда которых предусмотрено указами Президента РФ
A26: 1.8. Отношение средней заработной платы руководителей учреждения (подразделения) и их заместителей к средней заработной плате работников учреждения (подразделения) | B26: % | C26: 1.7 | D26: 1.7 | E26: 1.7
A27: 1.9. Отношение средней заработной платы, сложившейся/прогнозируемой в отчетном периоде, к средней заработной плате, необходимой для реализации указов Президента РФ | B27: % | C27: x | D27: x | E27: x | F27: x
A28: 2. Сведения об использовании имущества учреждения (подразделения) | B28: x | C28: x | D28: x | E28: x | F28: x
A29: 2.1. Общая площадь объектов недвижимого имущества, закрепленная за учреждением (подразделением) | B29: м2 | C29: 10,527.90 | D29: 10,527.90 | E29: 10,527.90
A30: в том числе:
A31: 2.1.1. Площадь недвижимого имущества в безвозмездном пользовании, всего | B31: м2 | C31: 10,527.90 | D31: 10,527.90 | E31: 10,527.90
A32: 2.1.2. Площадь недвижимого имущества в безвозмездном пользовании, не используемая для выполнения государственного задания | B32: м2 | C32: =137.6+1.2 -> 138.8 | D32: =C32 -> 138.8 | E32: =C32 -> 138.8
A33: 2.1.3. Площадь недвижимого имущества, переданная в аренду | B33: м2 | C33: 239.3 | D33: =C33 -> 239.3 | E33: =C33 -> 239.3
A34: 2.2. Затраты на содержание имущества учреждения (подразделения) | B34: тыс. руб. | C34: 52,657.90 | D34: =C34 -> 52,657.90 | E34: =C34 -> 52,657.90
A35: в том числе:
A36: 2.2.1. Затраты на содержание имущества учреждения (подразделения), не используемого для выполнения государственного задания | B36: тыс. руб. | C36: =560.368+50.399 -> 610.8 | D36: =C36 -> 610.8 | E36: =C36 -> 610.8
A37: 2.3. Коэффициент износа основных средств (отношение величины износа основных средств на конец отчетного периода к стоимости основных средств учреждения на конец отчетного периода) | B37: ед. | C37: 0.42 | D37: =C37 -> 0.42 | E37: =C37 -> 0.42
A38: 2.4. Коэффициент обновления основных средств (отношение стоимости основных средств, поступивших за отчетный период, к общей стоимости основных средств учреждения на конец отчетного периода) | B38: ед. | C38: 0.35 | D38: =C38 -> 0.35 | E38: =C38 -> 0.35
A39: 2.5. Коэффициенты ремонта зданий, характеризующие величину фактических расходов на капитальный ремонт зданий, приходящуюся на один рубль балансовой стоимости основных средств (в том числе за счет бюджетных средств) | B39: ед.
A40: в том числе: | B40: ед.
A41: за счет бюджетных средств | B41: ед.
A42: за счет приносящей доход деятельности | B42: ед.

Sheet Раздел 4
A1: Раздел 4. Перечень мероприятий по повышению эффективности деятельности учреждения (подразделения) на "30" сентября 2025 г.
A3: Наименование мероприятия | B3: Сроки проведения | C3: Ожидаемый результат реализации | D3: Затраты, необходимые на проведение мероприятия, тыс. руб.
A4: 1. Повышение эффективности управления и кадрового потенциала учреждения (подразделения) | B4: в течение года | C4: Отслеживание изменений в законодательстве и применение их в работе; Контроль, учет, безопасность выполнения ПТЭУ; Безопасная эксплуатация электроустановок | D4: 20.0
A6: 2. Повышение эффективности управления государственной собственностью
A8: 3. Повышение качества предоставления государственных услуг | B8: в течение года | C8: Повышение квалификации педагогических работников | D8: 100.0
A10: 4. Направления оптимизации расходов учреждения (подразделения) | B10: в течение года | C10: Режим экономии энергоресурсов и водоснабжения в учреждении | D10: 0.0
A12: Итого: | B12: x | C12: x | D12: =SUM(D4:D11) -> 120.0
A14: Ответственное должностное лицо | B14: Главный бухгалтер | D14: О.А. Манаенкова
B15: (должность) | C15: (подпись) | D15: (расшифровка подписи)
A16: Исполнитель Главный бухгалтер | C16: Манаенкова О.А. | D16: 88153274763
A17: (должность) | B17: (подпись) | C17: (фамилия, инициалы) (телефон)
A18: "30" сентября 2025 г.
A20: СОГЛАСОВАНО<14>
A21: ___________________________________________________________________________
A22: (наименование должности уполномоченного лица органа, осуществляющего
A23: функции и полномочия учредителя)
A24: ___________________ __________________________________________
A25: (подпись) (расшифровка подписи)
A26: "__" ___________ 20___ г.
A28: <14> План государственного областного бюджетного учреждения (План с учетом изменений) представляется на рассмотрение и согласование в орган, осуществляющий функции и полномочия учредителя.

Sheet Обоснования доходов
A1: Обоснования (расчеты) к плану финансово-хозяйственной деятельности государственного учреждения на 2025 год (на текущий финансовый год) (на 2026 год (на первый год планового периода), на 2027 год (на второй год планового периода)) <15>
A3: 1. Обоснования (расчеты) доходов
A5: 1.1. Обоснование (расчет) доходов от собственности
A7: Код аналитической группы подвида доходов | AQ7: 120
A9: № п/п | F9: Наименование показателя | AV9: Ставка (тариф) платы за использование имущества за единицу (объект, кв. м), руб. | BM9: Планируемый объем предоставления имущества в пользование (в натуральных показателях) | CD9: Объем планируемых поступлений, руб.
A10: 1 | F10: 2 | AV10: 3 | BM10: 4 | CD10: 5
A11: 1 | F11: Сдача в аренду нежилый помещений (ИП Мостовая Е.А.) | BM11: 239.3 | CD11: 730,246.95
A12: 2 | F12: Сдача в аренду нежилый помещений (ИП Чистякова Ю.А.) | BM12: 1.2 | CD12: 15,825.27
A13: Итого: | AV13: х | CD13: =SUM(CD11:CS12) -> 746,072.22
A15: 1.2. Обоснование (расчет) доходов от оказания услуг (работ), компенсации затрат учреждений
A17: Код аналитической группы подвида доходов | AQ17: 131
A19: 1.2.1. Расчет плановых поступлений в виде субсидии на финансовое обеспечение выполнения государственного задания
A21: № п/п | F21: Наименование показателя | AV21: Объем поступлений, руб.
A22: 1 | F22: 2 | AV22: 3
A23: 1 | F23: Субсидия на финансовое обеспечение выполнения государственного задания | AV23: 91,031,400.00
F24: Итого: | AV24: =AV23 -> 91,031,400.00
A26: 1.2.2. Расчет плановых поступлений от оказания дополнительных платных услуг (выполнения работ)
A28: № п/п | F28: Наименование услуги (работы) | AV28: Ставка (тариф) платы за единицу услуги (работы), руб. | BM28: Планируемый объем оказания услуг (выполнения работ), ед. | CD28: Объем планируемых поступлений, руб.
A29: 1 | F29: 2 | AV29: 3 | BM29: 4 | CD29: 5
A30: 1 | F30: Образовательные услуги | CD30: 1,199,143.15
A31: 2 | F31: Предоставление жилья в общежитии | CD31: 834,495.29
A32: 3 | F32: Возмещение затрат за коммунальные услуги арендаторами | CD32: 818,543.12
F33: Итого: | AV33: х | CD33: =SUM(CD30:CS32) -> 2,852,181.56
A35: 1.3. Обоснование (расчет) доходов от штрафов, пеней, иных сумм принудительного изъятия
A36: Код аналитической группы подвида доходов | AQ36: 140
A38: № п/п | F38: Наименование показателя | AV38: Количество документов-оснований | BM38: Средний объем поступлений по одному документу | CD38: Объем планируемых поступлений, руб.
A39: 1 | F39: 2 | AV39: 3 | BM39: 4 | CD39: 5
A40: 1
F41: Итого: | AV41: х | BM41: х | CD41: =CD40 -> 0.00
A42: 1.4. Обоснование (расчет) доходов от безвозмездных денежных поступлений
A44: Код аналитической группы подвида доходов | AQ44: 150
A46: № п/п | F46: Наименование вида безвозмездных денежных поступлений | AV46: Количество договоров | BM46: Объем поступлений по одному договору | CD46: Объем планируемых поступлений, руб.
A47: 1 | F47: 2 | AV47: 3 | BM47: 4 | CD47: 5
A48: 1 | F48: =справочно!A29 -> Обеспечено предоставление стипендий обучающимся по очной форме обучения в профессиональных образовательных организациях | AV48: 1 | BM48: =справочно!F29 -> 5,637,800.00 | CD48: =BM48 -> 5,637,800.00
A49: 2 | F49: =справочно!A31 -> Обеспечено финасирование предоставления бесплатного питания отдельным категориям обучающихся в учреждениях среднего профессионального образования | AV49: 1 | BM49: =справочно!F31 -> 2,012,400.00 | CD49: 2,012,400.00
A50: 3 | F50: =справочно!A28 -> Обеспечены выплаты денежного вознаграждения за классное руководство (кураторство), предоставляемые педагогическим работникам образовательных организаций ежемесячно (ОБ) | AV50: 1 | BM50: =справочно!F28 -> 293,900.00 | CD50: 293,900.00
A51: 4 | F51: =справочно!A32 -> Обеспечено финансирование расходов, связанных с оплатой проезда и провоза багажа к месту использования отпуска и обратно, а также компенсацией расходов на оплату стоимости проезда и провоза багажа при переезде лиц (работников), а также членов их семей, при заключении (расторжении) трудовых договоров (контрактов) с организациями, финансируемыми из областного бюджета | AV51: 1 | BM51: =справочно!F32 -> 928,900.00 | CD51: =BM51 -> 928,900.00
A52: 5 | F52: =справочно!A33 -> Обеспечено содержание детей-сирот, детей, оставшихся без попечения родителей, лиц из их числа в государственных автономных профессиональных образовательных учреждениях Мурманской области | AV52: 1 | BM52: =справочно!F33 -> 5,588,000.00 | CD52: 5,588,000.00
A53: 7 | F53: Обеспечено финансирование мероприятий Всероссийского чемпионатного движения по профессиональному мастерству в Мурманской области | AV53: 1 | BM53: =справочно!D30 -> 1,293,491.00 | CD53: =BM53 -> 1,293,491.00
A54: 8 | F54: =справочно!A27 -> Обеспечены выплаты денежного вознаграждения за классное руководство (кураторство), предоставляемые педагогическим работникам образовательных организаций ежемесячно (ФБ) | AV54: 1 | BM54: =справочно!F27 -> 6,533,800.00 | CD54: 6,533,800.00
A55: 9 | F55: =справочно!A25 -> Обеспечены выплаты ежемесячного денежного вознаграждения советникам директоров по воспитанию и взаимодействию с детскими общественными объединениями (ФБ) | AV55: 1 | BM55: =справочно!F25 -> 171,950.00 | CD55: =BM55 -> 171,950.00
A56: 10 | F56: =справочно!A26 -> Обеспечены выплаты ежемесячного денежного вознаграждения советникам директоров по воспитанию и взаимодействию с детскими общественными объединениями (ОБ) | AV56: 1 | BM56: =справочно!F26 -> 7,730.00 | CD56: 7,730.00
A57: 11 | F57: Обеспечено финансирование затрат на модернизацию, эксплуатацию и сопровождение автоматизированных информационных систем для предоставления государственных и муниципальных услуг в сфере образования | AV57: 1 | BM57: 204,296.00 | CD57: =BM57 -> 204,296.00
A58: 12 | F58: Стипендия Правительства РФ | AV58: 1 | BM58: =справочно!H35 -> 0.00 | CD58: 0.00
A59: 13 | F59: Грант в форме субсидии на развитие студенческих спортивных клубов | AV59: 1 | BM59: =справочно!D36 -> 730,000.00 | CD59: =BM59 -> 730,000.00
A60: 14 | F60: Безвозмездное (целевое) финансирование на монтаж АПС в зд. мастерских, обновление общих зон (приобретение мебели, брендирование) | AV60: 1 | BM60: =справочно!D37 -> 10,500,000.00 | CD60: =BM60 -> 10,500,000.00
A61: 15 | F61: Предоставление безвозмездной финансовой помощи | AV61: 1 | BM61: =справочно!D38 -> 83,700.00 | CD61: =BM61 -> 83,700.00
F62: Итого: | AV62: х | BM62: х | CD62: =SUM(CD48:CD61) -> 33,985,967.00
A64: 1.5. Обоснование (расчет) поступлений от субсидии на иные цели, субсидии на осуществление капитальных вложений
A66: Код аналитической группы подвида доходов
A68: № п/п | F68: Наименование вида дохода | AV68: Объем планируемых поступлений, руб.
A69: 1 | F69: 2 | AV69: 3
F72: Итого:
A74: 1.6. Обоснование (расчет) доходов от операций с активами
A76: Код аналитической группы подвида доходов | AQ76: 440
A78: № п/п | F78: Наименование показателя | AM78: Единица измерения | AV78: Планируемый объем реализации имущества,ед. | BM78: Цена за единицу, руб. | CD78: Объем планируемых поступлений, руб.
A79: 1 | F79: 2 | AM79: 3 | AV79: 4 | BM79: 5 | CD79: 6
A80: 1 | F80: Организация платного питания | CD80: 335,280.22
A81: 2
F82: Итого: | AV82: х | BM82: х | CD82: =SUM(CD80:CS81) -> 335,280.22
A84: 1.7. Обоснование (расчет) прочих поступлений
A86: Код аналитической группы вида источников финансирования дефицитов
A88: № п/п | F88: Наименование показателя | AV88: Объем планируемых поступлений, руб.
A89: 1 | F89: 2 | AV89: 3
A90: Источник финансового обеспечения: ____________________________________________________
A92: Итого:
A94: 1.8. Обоснование (расчет) налогов, уменьшающих доход
A96: Код видов доходов | V96: 180
A98: № п/п | F98: Наименование показателя | AV98: Налоговая база, руб. | BM98: Ставка налога, % | CD98: Сумма исчисленного налога, подлежащего уплате, руб. (гр. 3 x гр. 4 / 100)
A99: 1 | F99: 2 | AV99: 3 | BM99: 4 | CD99: 5
A100: 1 | F100: Налог на прибыль | CD100: 68,531.00
F102: Итого: | CD102: =CD100 -> 68,531.00
A104: <15> Обоснования (расчеты) к плану финансово-хозяйственной деятельности государственного учреждения формируются отдельно по годам.

Sheet Обоснования расходов
A1: 2.1.2. Обоснования (расчеты) прочих выплат персоналу
A3: Код видов расходов | W3: 112
A5: № п/п | G5: Наименование расходов | AD5: Средний размер выплаты на одного работника в день, руб. | BC5: Количество работников, чел. | BS5: Количество дней | CI5: Сумма, руб. (гр. 3 x гр. 4 x гр. 5)
A6: 1 | G6: 2 | AD6: 3 | BC6: 4 | BS6: 5 | CI6: 6
A7: Источник финансового обеспечения: 4
A8: 1 | G8: Командировочные расходы (суточные) | AD8: 100 | BS8: 100 | CI8: 10,000.00
A9: 2 | G9: Командировочные расходы (проезд в командировку) | AD9: 18950 | BC9: 10 | CI9: 80,000.00
A10: 3 | G10: Командировочные расходы (проживание) | AD10: 550 | BS10: 10 | CI10: 5,500.00
A11: 4 | G11: Возмещение мед.комиссии при устройстве на работе | AD11: 8675.75 | BS11: 4 | CI11: 34,500.00
A12: Итого по источнику финансового обеспечения: | AD12: х | BC12: х | BS12: х | CI12: =SUM(CI8:CI11) -> 130,000.00
A13: Источник финансового обеспечения: 5
A14: 1 | G14: Проезд к месту отдыха и обратно | AD14: 30900.98 | BC14: 20/9 | CI14: 896,128.27
A15: Итого по источнику финансового обеспечения: | AD15: х | BC15: х | BS15: х | CI15: =SUM(CI14:CI14) -> 896,128.27
A16: Источник финансового обеспечения: 2
A17: 1 | G17: Возмещение командировочных расходов (проживание) | CI17: 1,050.00
A18: Итого по источнику финансового обеспечения: | AD18: х | BC18: х | BS18: х | CI18: =SUM(CI17:CZ17) -> 1,050.00
A19: Итого: | AD19: х | BC19: х | BS19: х | CI19: =CI12+CI15+CI18 -> 1,027,178.27
A21: 2.1.3. Расчеты (обоснования) выплат персоналу по уходу за ребенком
A22: Код видов расходов
A24: № п/п | G24: Наименование расходов | AD24: Средняя численность работников, получающих пособие | AY24: Количество выплат в год на одного работника | BQ24: Размер выплаты (пособия) в месяц, руб. | CI24: Сумма, руб. (гр. 3 x гр. 4 x гр. 5)
A25: 1 | G25: 2 | AD25: 3 | AY25: 4 | BQ25: 5 | CI25: 6
A26: Источник финансового обеспечения: ____________________________________________________
A28: Итого по источнику финансового обеспечения: | AD28: х | AY28: х | BQ28: х
A29: Источник финансового обеспечения: ____________________________________________________
A31: Итого по источнику финансового обеспечения: | AD31: х | AY31: х | BQ31: х
G32: Итого: | AD32: х | AY32: х | BQ32: х
A34: 2.1.4. Расчеты (обоснования) иных выплат персоналу учреждений, за исключением фонда оплаты труда
A36: Код видов расходов | W36: 113
A38: № п/п | G38: Наименование расходов | AY38: Количество работников, чел. | BQ38: Средний размер выплаты, руб. | CI38: Сумма, руб. (гр. 3 x гр. 4 x гр. 5)
A39: 1 | G39: 2 | AD39: 3 | AY39: 4 | BQ39: 5 | CI39: 6
A40: Источник финансового обеспечения: 4
A41: 1 | G41: Возмещение расходов учащимся (медкомиссии) | AY41: 23 | BQ41: 2,930.00 | CI41: 67,390.00
A42: Итого по источнику финансового обеспечения: | AY42: х | BQ42: х | CI42: =CI41 -> 67,390.00
A43: Источник финансового обеспечения: ____________________________________________________
A45: Итого по источнику финансового обеспечения: | AY45: х | BQ45: х
G46: Итого: | AY46: х | BQ46: х
A48: 2.1.5. Расчеты (обоснования) страховых взносов на обязательное пенсионное страхование, на обязательное социальное страхование на случай временной нетрудоспособности и в связи с материнством, на обязательное социальное страхование от несчастных случаев на производстве и профессиональных заболеваний, на обязательное медицинское страхование
A50: Код видов расходов | W50: 119
A52: № п/п | G52: Наименование государственного внебюджетного фонда | BV52: Размер базы для начисления страховых взносов, руб. | CL52: Сумма взноса, руб.
A53: 1 | G53: 2 | BV53: 3 | CL53: 4
A54: Источник финансового обеспечения: 4
A55: 1 | H55: Страховые взносы на обязательное пенсионное страхование, на обязательное социальное страхование на случай временной нетрудоспособности и в связи с материнством, на обязательное медицинское страхование, всего | BV55: =BV56 -> 53,124,246.25 | CL55: =CL56+CL58 -> 16,014,832.37
A56: 1.1 | H56: в том числе: | BV56: =справочно!E50 -> 53,124,246.25 | CL56: 15,908,773.88
H57: по ставке 30,0%
H58: по ставке 0,2% | CL58: 106,058.49
A59: 1.2 | H59: по ставке 15,1%
A60: 1.3 | H60: с применением пониженных тарифов взносов для отдельных категорий плательщиков
A61: 2 | H61: Дополнительные тарифы на ОПС в установленных случаях проведения специальной оценки условий труда для отдельных категорий плательщиков, производящих выплаты физическим лицам, которые имеют право на досрочное назначение страховой пенсии
G62: Итого по источнику финансового обеспечения: | BV62: х | CL62: =CL55 -> 16,014,832.37
A64: Источник финансового обеспечения: 5
A65: 1 | H65: Страховые взносы на обязательное пенсионное страхование, на обязательное социальное страхование на случай временной нетрудоспособности и в связи с материнством, на обязательное медицинское страхование, всего | BV65: =BV66 -> 5,382,000.00 | CL65: =CL66+CL68 -> 1,658,151.73
A66: 1.1 | H66: в том числе: | BV66: =справочно!F50 -> 5,382,000.00 | CL66: =1614600+32771.73 -> 1,647,371.73
H67: по ставке 30,0%
H68: по ставке 0,2% | CL68: =10780 -> 10,780.00
A69: 1.2 | H69: по ставке 15,1%
A70: 1.3 | H70: с применением пониженных тарифов взносов для отдельных категорий плательщиков
A71: 2 | H71: Дополнительные тарифы на ОПС в установленных случаях проведения специальной оценки условий труда для отдельных категорий плательщиков, производящих выплаты физическим лицам, которые имеют право на досрочное назначение страховой пенсии
G72: Итого по источнику финансового обеспечения: | BV72: х | CL72: =CL65 -> 1,658,151.73
A74: Источник финансового обеспечения: 2
A75: 1 | H75: Страховые взносы на обязательное пенсионное страхование, на обязательное социальное страхование на случай временной нетрудоспособности и в связи с материнством, на обязательное медицинское страхование, всего | BV75: =BV76 -> 1,624,790.32 | CL75: =CL76+CL78 -> 490,716.87
A76: 1.1 | H76: в том числе: | BV76: =справочно!H50 -> 1,624,790.32 | CL76: 487,437.10
H77: по ставке 30,0%
H78: по ставке 0,2% | CL78: 3,279.77
A79: 1.2 | H79: по ставке 15,1%
A80: 1.3 | H80: с применением пониженных тарифов взносов для отдельных категорий плательщиков
A81: 2 | H81: Дополнительные тарифы на ОПС в установленных случаях проведения специальной оценки условий труда для отдельных категорий плательщиков, производящих выплаты физическим лицам, которые имеют право на досрочное назначение страховой пенсии
G82: Итого по источнику финансового обеспечения: | BV82: х | CL82: =CL75 -> 490,716.87
G83: Итого: | BV83: х | CL83: =CL62+CL72+CL82 -> 18,163,700.97
A85: 2.2. Расчеты (обоснования) расходов на социальные и иные выплаты населению
A87: 2.2.1.Расчеты (обоснования) расходов на пособия, компенсации и иные социальные выплаты гражданам, кроме публичных нормативных обязательств
A89: Код видов расходов | W89: 321
A91: № п/п | H91: Наименование показателя | BC91: Размер одной выплаты, руб. | BS91: Количество выплат в год | CI91: Общая сумма выплат, руб. (гр. 3 x гр. 4)
A92: 1 | H92: 2 | BC92: 3 | BS92: 4 | CI92: 5
A93: Источник финансового обеспечения: 5
A94: 1 | H94: Компенсация за питание учащимся ТЖС за дни практики | BC94: 215.00 | BS94: 1119 | CI94: =BC94*BS94 -> 240,585.00
A95: 2 | H95: Компенсация за питание детям-сиротам | BC95: 540/595 | CI95: 1,980,454.00
A96: 3 | H96: Компенсация стоимости проезда к месту учебы и обратно | CI96: 0.00
A97: 4 | H97: Компенсация стоимости проезда к месту отдыха и обратно | BC97: 12,538.60 | BS97: 1 | CI97: =BC97*BS97 -> 12,538.60
A98: 5 | H98: Единовременное пособие при выпуске | BC98: 500.00 | BS98: 8 | CI98: =BC98*BS98 -> 4,000.00
A99: 6 | H99: Компенсация при выпуске | BC99: 93,334.78 | BS99: 8 | CI99: 746,678.24
A100: 7 | H100: Компенсация стоимости канцелярских принадлежностей детям-сиротам | BC100: 6,153.00 | BS100: 14 | CI100: 86,142.00
A101: 8 | H101: Компенсация стоимости канцелярских принадлежностей учащимся под опекой | BC101: 6,153.00 | BS101: 3 | CI101: 18,459.00
A102: 9 | H102: Компенсация стоимости лекарственных препаратов детям-сиротам | BC102: 1,728.87 | BS102: 1 | CI102: 1,728.16
A103: Итого по источнику финансового обеспечения: | BC103: х | BS103: х | CI103: =SUM(CI94:CI102) -> 3,090,585.00
A104: Итого: | BC104: х | BS104: х | CI104: =SUM(CI94:CZ102) -> 3,090,585.00
A105: Источник финансового обеспечения: 2
A106: 1 | H106: Материальная помощь учащимся
A107: Итого: | BC107: х | BS107: х | CI107: =CI106 -> 0.00
A108: ВСЕГО: | BC108: х | BS108: х | CI108: =CI104+CI107 -> 3,090,585.00
A109: 2.2.2.Расчеты (обоснования) расходов на приобретение товаров, работ, услуг в пользу граждан в целях их социального обеспечения
A111: Код видов расходов | W111: 323
A113: № п/п | H113: Наименование показателя | BC113: Количество товаров (работ, услуг), ед. | BS113: Средняя стоимость, руб. | CI113: Сумма, руб. (гр. 3 x гр. 4)
A114: 1 | H114: 2 | BC114: 3 | BS114: 4 | CI114: 5
A115: Источник финансового обеспечения: 5____________________________________________________
A116: 1 | H116: Приобретение продуктов питания обучающимся из ТЖС | CI116: 1,771,815.00
A117: 2 | H117: Приобретение продуктов питания для детей-сирот | CI117: 1,362,839.00
A118: 3 | H118: Приобретение предметов мягкого инвентаря | BS118: 93334.78 | CI118: =330161+913000 -> 1,243,161.00
A119: 4 | H119: Приобретение предметов личной гигиены | BS119: 1000 | CI119: 132,000.00
A120: Итого по источнику финансового обеспечения: | BC120: х | BS120: х | CI120: =SUM(CI116:CI119) -> 4,509,815.00
A122: 2.3. Расчет (обоснование) расходов на уплату налогов, сборов и иных платежей
A124: 2.3.1. Расчет (обоснование) расходов на уплату налога на имущество организаций и земельный налог
A126: Код видов расходов | W126: 851
A128: № п/п | H128: Наименование показателя | BC128: Налоговая база, руб. | BS128: Ставка налога, % | CI128: Сумма исчисленного налога, подлежащего уплате, руб. (гр. 3 x гр. 4 / 100)
A129: 1 | H129: 2 | BC129: 3 | BS129: 4 | CI129: 5
A130: Источник финансового обеспечения: 4
A131: 1 | H131: Налог на имущество | BC131: 109,462,216.52 | BS131: 2.2 | CI131: 2,312,597.00
A132: 1 | H132: Земельный налог (51:28:0050001:23) | BC132: 15,784,719.09 | BS132: 1.5 | CI132: 229,668.00
A133: Итого по источнику финансового обеспечения: | BC133: х | BS133: х | CI133: =CI131+CI132 -> 2,542,265.00
A134: Источник финансового обеспечения: 2 (0,003)
A135: 1 | H135: Налог на имущество | BC135: =BC131 -> 109,462,216.52 | BS135: 2.2 | CI135: 104,831.00
A136: 1 | H136: Земельный налог (51:28:0050001:23) | BC136: =BC132 -> 15,784,719.09 | BS136: 1.5 | CI136: 7,103.00
A137: Итого по источнику финансового обеспечения: | BC137: х | BS137: х | CI137: =SUM(CI135:CZ136) -> 111,934.00
A138: Итого: | BC138: х | BS138: х | CI138: =CI133+CI137 -> 2,654,199.00
A140: 2.3.2. Расчет (обоснование) расходов на уплату иных налогов (включаемых в состав расходов) в бюджеты бюджетной системы Российской Федерации, а также государственной пошлины
A142: Код видов расходов | W142: 852
A144: № п/п | H144: Наименование показателя | BC144: Налоговая база, л/с | BS144: Ставка налога, руб. | CI144: Сумма исчисленного налога, подлежащего уплате, руб. (гр. 3 x гр. 4 / 100)
A145: 1 | H145: 2 | BC145: 3 | BS145: 4 | CI145: 5
A146: Источник финансового обеспечения: 4
A147: 1 | H147: Транспортный налог Легковой автомобиль ВАЗ 21140, 2006 г.в. | BC147: 77.5 | BS147: 12 | CI147: 902.00
A148: 2 | H148: Транспортный налог Грузовой автомобиль ГАЗ -2705, 2006 г.в. | BC148: 140 | BS148: 32 | CI148: 4,345.00
A149: Итого по источнику финансового обеспечения: | BC149: х | BS149: х | CI149: =SUM(CI147:CI148) -> 5,247.00
A150: Источник финансового обеспечения: 2 (0,003)
A151: 1 | H151: Транспортный налог Легковой автомобиль ВАЗ 21140, 2006 г.в. | BC151: 77.5 | BS151: 12 | CI151: 28.00
A152: 2 | H152: Транспортный налог Грузовой автомобиль ГАЗ -2705, 2006 г.в. | BC152: 140 | BS152: 32 | CI152: 135.00
A153: Итого по источнику финансового обеспечения: | BC153: х | BS153: х | CI153: =SUM(CI151:CI152) -> 163.00
A154: Итого: | BC154: х | BS154: х | CI154: =CI149+CI153 -> 5,410.00
A155: 2.3.3. Расчет (обоснование) расходов на уплату штрафов (в том числе административных), пеней, иных платежей
A157: Код видов расходов | W157: 853
A159: № п/п | H159: Наименование показателя | BC159: Налоговая база, руб. | BS159: Ставка налога, % | CI159: Сумма исчисленного налога, подлежащего уплате, руб. (гр. 3 x гр. 4 / 100)
A160: 1 | H160: 2 | BC160: 3 | BS160: 4 | CI160: 5
A161: Источник финансового обеспечения: 2
A162: 1 | H162: Штрафы, пени за несвоевременную уплату налогов, сборов, страховых взносов | CI162: 0.00
A163: 2 | H163: Штрафы за нарушение законодательства о закупках и нарушение условий контрактов (договоров) | CI163: 105.00
A164: 3 | H164: Штрафные санкции, пени | CI164: 0.00
A165: 4 | H165: Иные выплаты текущего характера физическим лицам | CI165: 5,831.45
A166: 5 | H166: Иные выплаты текущего характера организациям | CI166: 0.00
A167: Итого по источнику финансового обеспечения: | BC167: х | BS167: х | CI167: =SUM(CI162:CI166) -> 5,936.45
A169: 2.4. Расчет (обоснование) расходов на безвозмездные перечисления организациям
A171: Код видов расходов
A173: № п/п | H173: Наименование показателя | BC173: Размер одной выплаты, руб. | BS173: Количество выплат в год | CI173: Общая сумма выплат, руб. (гр. 3 x гр. 4)
A174: 1 | H174: 2 | BC174: 3 | BS174: 4 | CI174: 5
A175: Источник финансового обеспечения: ____________________________________________________
A177: Итого по источнику финансового обеспечения: | BC177: х | BS177: х
A178: Источник финансового обеспечения: ____________________________________________________
A180: Итого по источнику финансового обеспечения: | BC180: х | BS180: х
A181: Итого: | BC181: х | BS181: х
A183: 2.5. Расчет (обоснование) прочих расходов (кроме расходов на закупку товаров, работ, услуг)
A185: Код видов расходов | W185: 340
A187: № п/п | H187: Наименование показателя | BC187: Размер одной выплаты, руб. | BS187: Среднегодовое количество стипендиатов (в мес.) | CI187: Общая сумма выплат, руб. (гр. 3 x гр. 4)
A188: 1 | H188: 2 | BC188: 3 | BS188: 4 | CI188: 5
A189: Источник финансового обеспечения: 5____________________________________________________
A190: 1 | H190: Стипендия обучающимся (академическая) | BC190: 1,367.00 | BS190: 204 | CI190: 3,346,416.00
A191: 2 | H191: Стипендия обучающимся (социальная) | BC191: 2,051.00 | BS191: 60 | CI191: 1,476,720.00
A192: 3 | H192: Стипендия обучающимся (именная) | BC192: 10,000.00 | BS192: 4 | CI192: 480,000.00
A193: 4 | H193: Повышенные стипендии за особые успехи в учебной и научной деятельности | CI193: 334,664.00
A194: Итого по источнику финансового обеспечения: | BC194: х | BS194: х | CI194: =SUM(CI190:CZ193) -> 5,637,800.00
A195: Источник финансового обеспечения: 2____________________________________________________
A196: 1 | H196: Стипендия Правительства РФ | BC196: 5,600.00 | BS196: 0 | CI196: 0.00
A197: Итого по источнику финансового обеспечения: | BC197: х | BS197: х | CI197: =SUM(CI196:CI196) -> 0.00
A198: Итого: | BC198: х | BS198: х | CI198: =CI194+CI197 -> 5,637,800.00
A200: Код видов расходов
A201: № п/п | H201: Наименование показателя | BC201: Размер одной выплаты, руб. | BS201: Среднегодовое получателей | CI201: Общая сумма выплат, руб. (гр. 3 x гр. 4)
A202: 1 | H202: 2 | BC202: 3 | BS202: 4 | CI202: 5
A203: Источник финансового обеспечения: 2
A204: 1
A205: Итого по источнику финансового обеспечения: | BC205: х | BS205: х | CI205: =SUM(CI204:CI204) -> 0.00
A206: 2.6. Расчет (обоснование) расходов на закупку товаров, работ, услуг
A208: Код видов расходов | W208: 243
A209: № п/п | H209: Наименование расходов | BS209: Количество договоров, ед. | CI209: Стоимость услуг (работ), руб.
A210: Источник финансового обеспечения: 2
A211: 1 | H211: Проведение тех.обследования, формирование ведомости работ, разработке сметной документации и получение положительного заключения гос. экспертизы в части определения достоверности сметной стоимости капитального ремонта учебного корпуса | BS211: 2 | CI211: =599000+599000 -> 1,198,000.00
A212: Итого по источнику финансового обеспечения: | BS212: х | CI212: =SUM(CI211:CZ211) -> 1,198,000.00
A213: Итого: | BS213: х | CI213: =CI212 -> 1,198,000.00
A215: 2.6.1. Расчет (обоснование) расходов на оплату услуг связи
A217: Код видов расходов | W217: 244
A219: № п/п | H219: Наименование расходов | AO219: Количество номеров | BE219: Количество платежей в год | BU219: Стоимость за единицу, руб. | CK219: Сумма, руб. (гр. 3 x гр. 4 x гр. 5)
A220: 1 | H220: 2 | AO220: 3 | BE220: 4 | BU220: 5 | CK220: 6
A221: Источник финансового обеспечения: 4
A222: 1 | H222: Услуги связи по передаче данных | AO222: 1 | BE222: 1 | BU222: 850.00 | CK222: =850 -> 850.00
A223: 2 | H223: Предоставление абонентской линии | AO223: 6 | BE223: 12
A224: 3 | H224: Выделенный доступ в сети интернет | AO224: 1 | BE224: 10 | BU224: 5,500.00 | CK224: 55,000.00
A225: 4 | H225: Услуги почтовой свзи (кол-во отправлений) | AO225: 413 | BE225: 413 | BU225: 29.28 | CK225: 11,500.00
A226: 5 | H226: Услуги телефонной связи (местной, Внутризоновой, междугородней телефонной связи) | AO226: 4740+5469+1006 | BE226: 12 | BU226: 4,270.52 | CK226: 49,650.00
A227: Итого по источнику финансового обеспечения: | AO227: х | BE227: х | BU227: х | CK227: =SUM(CK222:CK226) -> 117,000.00
A228: Источник финансового обеспечения: 2
A229: 1 | H229: Услуги почтовой свзи (кол-во отправлений)
A230: Итого по источнику финансового обеспечения: | AO230: х | BE230: х
A231: Итого: | AO231: х | BE231: х | BU231: х | CK231: =CK227+CK230 -> 117,000.00
A233: 2.6.2. Расчет (обоснование) расходов на оплату транспортных услуг
A235: Код видов расходов | W235: 244
A237: № п/п | H237: Наименование расходов | BC237: Количество услуг перевозки | BS237: Цена услуги перевозки, руб. | CI237: Сумма, руб. (гр. 3 x гр. 4)
A238: 1 | H238: 2 | BC238: 3 | BS238: 4 | CI238: 5
A239: Источник финансового обеспечения: 4
A240: 1 | H240: Найм транспортных средств (эвакуатор) | BC240: 1 | BS240: 0.00 | CI240: 6,000.00
A241: 2 | H241: Найм транспортных средств | BC241: 1 | BS241: 0.00 | CI241: 0.00
A242: Итого по источнику финансового обеспечения: | BC242: х | BS242: х | CI242: =SUM(CI240:CI241) -> 6,000.00
A243: Источник финансового обеспечения: 2
A245: Итого по источнику финансового обеспечения: | BC245: х | BS245: х
A246: Итого: | BC246: х | BS246: х
A248: 2.6.3. Расчет (обоснование) расходов на оплату коммунальных услуг
... 163 more rows

Sheet Приложение 3
E1: Приложение № 3
E2: к Порядку составления и утверждения плана финансово-хозяйственной деятельности государственных бюджетных и автономных учреждений, в отношении которых Министерство образования и науки Мурманской области осуществляет функции и полномочия учредителя, утвержденному приказом Министерства образования и науки Мурманской области от______________________ № _________
A3: Изменение показателей по поступлениям и выплатам (+,-)
A4: Наименование показателя | B4: Код строки | C4: Код по БК РФ <3>
D5: на 20__ г. текущий финансовый год | E5: на 20__ г. (1-й год планового периода) | F5: на 20__ г. (2-й год планового периода) | G5: за пределами планового периода
A6: 1 | B6: 2 | C6: 3 | D6: 4 | E6: 5 | F6: 6 | G6: 7
A7: Остаток средств на начало текущего финансового года <4> | B7: 0001 | C7: x
A8: Остаток средств на конец текущего финансового года <4> | B8: 0002 | C8: x
A9: Доходы, всего: | B9: 1000
A10: в том числе:
A12: доходы от собственности, всего | B12: 1100 | C12: 120
A13: в том числе: | B13: 1110 | C13: 120
A15: доходы от оказания услуг, работ, компенсации затрат учреждений, всего | B15: 1200 | C15: 130
A16: в том числе: | B16: 1210 | C16: 130
A17: субсидии на финансовое обеспечение выполнения государственного (муниципального) задания за счет средств бюджета публично-правового образования, создавшего учреждение
A18: субсидии на финансовое обеспечение выполнения государственного задания за счет средств бюджета Федерального фонда обязательного медицинского страхования | B18: 1220 | C18: 130
A19: поступления от оказания услуг (выполнения работ) на платной основе и от иной приносящей доход деятельности | B19: 1230 | C19: 130
A20: из них: | B20: 1231 | C20: 130
A21: государственные услуги
A22: дополнительные платные услуги | B22: 1232 | C22: 130
A23: прочие поступления | B23: 1233 | C23: 130
A24: доходы от штрафов, пеней, иных сумм принудительного изъятия, всего | B24: 1300 | C24: 140
A25: в том числе: | B25: 1310 | C25: 140
A27: безвозмездные денежные поступления, всего | B27: 1400 | C27: 150
A28: в том числе: | B28: 1410 | C28: 150
A29: целевые субсидии
A30: субсидии на осуществление капитальных вложений | B30: 1420 | C30: 150
A31: прочие доходы, всего | B31: 1500 | C31: 180
A32: в том числе:
A34: доходы от операций с активами, всего | B34: 1900
A35: в том числе:
A37: прочие поступления, всего <5> | B37: 1980 | C37: x
A38: из них:
A39: увеличение остатков денежных средств за счет возврата дебиторской задолженности прошлых лет | B39: 1981 | C39: 510 | G39: x
A41: Расходы, всего | B41: 2000 | C41: x
A42: в том числе: | B42: 2100 | C42: x | G42: x
A43: на выплаты персоналу, всего
A44: в том числе: | B44: 2110 | C44: 111 | G44: x
A45: оплата труда
A46: прочие выплаты персоналу, в том числе компенсационного характера | B46: 2120 | C46: 112 | G46: x
A47: иные выплаты, за исключением фонда оплаты труда учреждения, для выполнения отдельных полномочий | B47: 2130 | C47: 113 | G47: x
A48: взносы по обязательному социальному страхованию на выплаты по оплате труда работников и иные выплаты работникам учреждений, всего | B48: 2140 | C48: 119 | G48: x
A49: в том числе: | B49: 2141 | C49: 119 | G49: x
A50: на выплаты по оплате труда
A51: на иные выплаты работникам | B51: 2142 | C51: 119 | G51: x
A52: денежное довольствие военнослужащих и сотрудников, имеющих специальные звания | B52: 2150 | C52: 131 | G52: x
A53: расходы на выплаты военнослужащим и сотрудникам, имеющим специальные звания, зависящие от размера денежного довольствия | B53: 2160 | C53: 133
A54: иные выплаты военнослужащим и сотрудникам, имеющим специальные звания | B54: 2170 | C54: 134 | G54: x
A55: страховые взносы на обязательное социальное страхование в части выплат персоналу, подлежащих обложению страховыми взносами | B55: 2180 | C55: 139 | G55: x
A56: в том числе: | B56: 2181 | C56: 139 | G56: x
A57: на оплату труда стажеров
A58: социальные и иные выплаты населению, всего | B58: 2200 | C58: 300 | G58: x
A59: в том числе: | B59: 2210 | C59: 320 | G59: x
A60: социальные выплаты гражданам, кроме публичных нормативных социальных выплат
A61: из них: | B61: 2211 | C61: 321 | G61: x
A62: пособия, компенсации и иные социальные выплаты гражданам, кроме публичных нормативных обязательств
A63: приобретение товаров, работ, услуг в пользу граждан в целях их социального обеспечения | B63: 2212 | C63: 323 | G63: x
A64: выплата стипендий, осуществление иных расходов на социальную поддержку обучающихся за счет средств стипендиального фонда | B64: 2220 | C64: 340 | G64: x
A65: на премирование физических лиц за достижения в области культуры, искусства, образования, науки и техники, а также на предоставление грантов с целью поддержки проектов в области науки, культуры и искусства | B65: 2230 | C65: 350 | G65: x
A66: иные выплаты населению | B66: 2240 | C66: 360 | G66: x
A67: уплата налогов, сборов и иных платежей, всего | B67: 2300 | C67: 850 | G67: x
A68: в том числе: | B68: 2310 | C68: 851 | G68: x
A69: налог на имущество организаций и земельный налог
A70: иные налоги (включаемые в состав расходов) в бюджеты бюджетной системы Российской Федерации, а также государственная пошлина | B70: 2320 | C70: 852 | G70: x
A71: уплата штрафов (в том числе административных), пеней, иных платежей | B71: 2330 | C71: 853 | G71: x
A72: безвозмездные перечисления организациям и физическим лицам, всего | B72: 2400 | C72: x | G72: x
A73: из них: | B73: 2410 | C73: 613 | G73: x
A74: гранты, предоставляемые бюджетным учреждениям
A75: гранты, предоставляемые автономным учреждениям | B75: 2420 | C75: 623
A76: гранты, предоставляемые иным некоммерческим организациям (за исключением бюджетных и автомомных учреждений) | B76: 2430 | C76: 634
A77: гранты, предоставляемые другим организациям и физическим лицам | B77: 2440 | C77: 810
A78: взносы в международные организации | B78: 2450 | C78: 862
A79: платежи в целях обеспечения реализации соглашений с правительствами иностранных государств и международными организациями | B79: 2460 | C79: 863 | G79: x
A80: прочие выплаты (кроме выплат на закупку товаров, работ, услуг) | B80: 2500 | C80: x | G80: x
A81: исполнение судебных актов Российской Федерации и мировых соглашений по возмещению вреда, причиненного в результате деятельности учреждения | B81: 2520 | C81: 831 | G81: x
A82: расходы на закупку товаров, работ, услуг, всего <6> | B82: 2600 | C82: x
A83: в том числе: | B83: 2610 | C83: 241
A84: закупку научно-исследовательских и опытно-конструкторских работ
A85: закупку товаров, работ, услуг в целях капитального ремонта государственного (муниципального) имущества | B85: 2630 | C85: 243
A86: прочую закупку товаров, работ и услуг, всего | B86: 2640 | C86: 244
A87: в том числе: | B87: 2641 | C87: 244
A88: услуги связи
A89: транспортные расходы | B89: 2642 | C89: 244
A90: коммунальные услуги | B90: 2643 | C90: 244
A91: арендная плата за пользование имуществом | B91: 2644 | C91: 244
A92: работы, услуги по содержанию имущества, всего | B92: 2645 | C92: 244
A93: в том числе:
A94: текущий ремонт движимого имущества
A95: текущий ремонт недвижимого имущества
A96: прочие работы, услуги, всего | B96: 2646 | C96: 244
A97: в том числе:
A98: организация питания
A99: увеличение стоимости основных средств | B99: 2647 | C99: 244
A100: увеличение стоимости материальных запасов, всего | B100: 2648 | C100: 244
A101: в том числе:
A102: медикаменты и перевязочные средства
A103: горюче-смазочные материалы
A104: продукты питания
A105: мягкий инвентарь
A106: закупку товаров, работ, услуг в целях создания, развития, эксплуатации и вывода из эксплуатации государственных информационных систем | B106: 2650 | C106: 246
A107: закупку энергетических ресурсов | B107: 2660 | C107: 247
A108: капитальные вложения в объекты государственной (муниципальной) собственности, всего | B108: 2700 | C108: 400
A109: в том числе: | B109: 2710 | C109: 406
A110: приобретение объектов недвижимого имущества государственными (муниципальными) учреждениями
A111: строительство (реконструкция) объектов недвижимого имущества государственными (муниципальными) учреждениями | B111: 2720 | C111: 407
A112: специальные расходы | B112: 2800 | C112: 880
A113: Выплаты, уменьшающие доход, всего <7> | B113: 3000 | C113: 100 | G113: x
A114: в том числе: | B114: 3010 | G114: x
A115: налог на прибыль
A116: налог на добавленную стоимость | B116: 3020 | G116: x
A117: прочие налоги, уменьшающие доход | B117: 3030 | G117: x
A118: Прочие выплаты, всего <8> | B118: 4000 | C118: x | G118: x
A119: из них: | B119: 4010 | C119: 610 | G119: x
A120: возврат в бюджет средств субсидии
